{"text_format":"1","workbook":"xlsx","n_sheets":5,"sheets":["INFORMAÇÕES GERAIS","EMPRESAS ELABORADORAS","LISTA","LISTA_PATRIMÔNIO","LISTAS"],"not_rendered":{"charts":0,"images":1,"macros":1,"external_links":0,"defined_names":58,"comments":0,"pivot_tables":0},"unopened":[],"bounds":{"document_bytes":16777216,"sheet_cells":100000,"rows_first":2000,"rows_last":500,"rows_between":2000,"halvings":0,"cell_chars":16384,"cell_head_chars":4096},"cells_cut":0,"cells_raw":0,"read":"whole","date_system":"1900"}

{"sheet":"INFORMAÇÕES GERAIS","index":0,"n_rows":874,"n_cols":51,"rows_kept":874,"cut":false,"hidden":false,"merged":[[505,39,505,44],[506,0,506,6],[506,7,506,29],[506,30,506,32],[506,33,506,38],[506,39,506,44],[507,0,507,6],[507,7,507,29],[507,30,507,32],[507,33,507,38],[507,39,507,44],[529,7,529,29],[529,0,529,6],[528,39,528,44],[528,33,528,38],[528,30,528,32],[528,7,528,29],[528,0,528,6],[527,39,527,44],[527,33,527,38],[527,30,527,32],[527,7,527,29],[527,0,527,6],[526,39,526,44],[526,33,526,38],[526,30,526,32],[526,7,526,29],[526,0,526,6],[508,0,508,6],[508,7,508,29],[508,30,508,32],[508,33,508,38],[540,39,540,44],[540,33,540,38],[532,39,532,44],[532,33,532,38],[532,30,532,32],[532,7,532,29],[532,0,532,6],[531,39,531,44],[531,33,531,38],[531,30,531,32],[531,7,531,29],[531,0,531,6],[534,39,534,44],[624,0,624,5],[624,23,624,28],[624,40,624,44],[599,40,599,44],[577,40,577,44],[546,40,546,44],[546,32,546,39],[534,33,534,38],[540,0,540,29],[540,30,540,32],[575,5,575,11],[575,12,575,16],[545,16,545,23],[533,33,533,38],[533,39,533,44],[534,0,534,6],[534,7,534,29],[534,30,534,32],[539,0,539,6],[447,39,447,44],[447,33,447,38],[447,26,447,32],[447,19,447,25],[447,13,447,18],[447,7,447,12],[447,0,447,6],[426,6,426,16],[427,6,427,16],[428,6,428,16],[429,6,429,16],[430,0,430,28],[430,29,430,31],[429,0,429,5],[491,33,491,38],[491,30,491,32],[491,39,491,44],[440,0,440,6],[440,7,440,12],[440,13,440,18],[440,19,440,25],[440,26,440,32],[440,33,440,38],[440,39,440,44],[441,0,441,6],[441,7,441,12],[441,13,441,18],[441,19,441,25],[441,26,441,32],[441,33,441,38],[441,39,441,44],[428,0,428,5],[352,17,352,28],[353,17,353,28],[354,17,354,28],[355,17,355,28],[356,17,356,28],[357,17,357,28],[403,17,403,28],[404,17,404,28],[405,17,405,28],[406,17,406,28],[407,17,407,28],[408,17,408,28],[409,17,409,28],[410,17,410,28],[415,17,415,28],[416,17,416,28],[417,17,417,28],[330,17,330,28],[331,17,331,28],[332,17,332,28],[333,17,333,28],[334,17,334,28],[335,17,335,28],[336,17,336,28],[337,17,337,28],[338,17,338,28],[339,17,339,28],[340,17,340,28],[341,17,341,28],[350,17,350,28],[351,17,351,28],[330,6,330,16],[331,6,331,16],[332,6,332,16],[335,6,335,16],[336,6,336,16],[337,6,337,16],[338,6,338,16],[339,6,339,16],[340,6,340,16],[341,6,341,16],[342,6,342,16],[343,6,343,16],[344,6,344,16],[404,6,404,16],[405,6,405,16],[406,6,406,16],[407,6,407,16],[408,6,408,16],[409,6,409,16],[410,6,410,16],[411,6,411,16],[412,6,412,16],[413,6,413,16],[414,6,414,16],[415,6,415,16],[416,6,416,16],[417,6,417,16],[377,6,377,16],[378,6,378,16],[379,6,379,16],[380,6,380,16],[381,6,381,16],[382,6,382,16],[383,6,383,16],[384,6,384,16],[385,6,385,16],[386,6,386,16],[387,6,387,16],[388,6,388,16],[389,6,389,16],[390,6,390,16],[391,6,391,16],[229,6,229,16],[403,6,403,16],[352,6,352,16],[353,6,353,16],[354,6,354,16],[355,6,355,16],[356,6,356,16],[357,6,357,16],[358,6,358,16],[359,6,359,16],[360,6,360,16],[361,6,361,16],[362,6,362,16],[230,6,230,16],[231,6,231,16],[232,6,232,16],[233,6,233,16],[249,6,249,16],[250,6,250,16],[346,6,346,16],[347,6,347,16],[348,6,348,16],[248,6,248,16],[349,6,349,16],[350,6,350,16],[351,6,351,16],[251,6,251,16],[114,28,114,32],[115,28,115,32],[116,28,116,32],[117,28,117,32],[118,28,118,32],[119,28,119,32],[120,28,120,32],[121,28,121,32],[122,28,122,32],[333,6,333,16],[334,6,334,16],[109,5,109,20],[110,5,110,20],[111,5,111,20],[112,5,112,20],[113,5,113,20],[114,5,114,20],[115,5,115,20],[116,5,116,20],[117,5,117,20],[118,5,118,20],[119,5,119,20],[120,5,120,20],[121,5,121,20],[122,5,122,20],[121,21,121,27],[252,6,252,16],[253,6,253,16],[254,6,254,16],[255,6,255,16],[256,6,256,16],[257,6,257,16],[74,28,74,32],[75,28,75,32],[76,28,76,32],[77,28,77,32],[78,28,78,32],[79,28,79,32],[80,28,80,32],[81,28,81,32],[82,28,82,32],[83,28,83,32],[84,28,84,32],[106,28,106,32],[107,28,107,32],[108,28,108,32],[109,28,109,32],[110,28,110,32],[111,28,111,32],[122,21,122,27],[76,21,76,27],[77,21,77,27],[78,21,78,27],[79,21,79,27],[80,21,80,27],[81,21,81,27],[82,21,82,27],[83,21,83,27],[84,21,84,27],[85,21,85,27],[86,21,86,27],[87,21,87,27],[88,21,88,27],[89,21,89,27],[90,21,90,27],[91,21,91,27],[106,21,106,27],[107,21,107,27],[108,21,108,27],[109,21,109,27],[110,21,110,27],[111,21,111,27],[112,21,112,27],[113,21,113,27],[114,21,114,27],[115,21,115,27],[116,21,116,27],[117,21,117,27],[118,21,118,27],[74,5,74,20],[75,5,75,20],[76,5,76,20],[77,5,77,20],[78,5,78,20],[79,5,79,20],[80,5,80,20],[81,5,81,20],[82,5,82,20],[83,5,83,20],[84,5,84,20],[85,5,85,20],[86,5,86,20],[87,5,87,20],[106,5,106,20],[107,5,107,20],[108,5,108,20],[328,0,328,5],[328,29,328,31],[328,32,328,34],[328,35,328,39],[328,40,328,44],[329,0,329,5],[329,29,329,31],[329,32,329,34],[329,35,329,39],[329,40,329,44],[327,6,327,16],[328,6,328,16],[329,6,329,16],[327,17,327,28],[328,17,328,28],[329,17,329,28],[222,0,222,29],[222,30,222,32],[234,6,234,16],[235,6,235,16],[236,6,236,16],[237,6,237,16],[238,6,238,16],[239,6,239,16],[240,6,240,16],[241,6,241,16],[242,6,242,16],[243,6,243,16],[244,6,244,16],[245,6,245,16],[246,6,246,16],[247,6,247,16],[325,0,325,5],[325,29,325,31],[325,32,325,34],[325,35,325,39],[325,40,325,44],[326,0,326,5],[326,29,326,31],[326,32,326,34],[326,35,326,39],[326,40,326,44],[324,6,324,16],[325,6,325,16],[326,6,326,16],[324,17,324,28],[325,17,325,28],[326,17,326,28],[327,0,327,5],[327,29,327,31],[327,32,327,34],[327,35,327,39],[327,40,327,44],[322,0,322,5],[322,29,322,31],[322,32,322,34],[322,35,322,39],[322,40,322,44],[323,0,323,5],[323,29,323,31],[323,32,323,34],[323,35,323,39],[323,40,323,44],[321,6,321,16],[322,6,322,16],[323,6,323,16],[321,17,321,28],[322,17,322,28],[323,17,323,28],[324,0,324,5],[324,29,324,31],[324,32,324,34],[324,35,324,39],[324,40,324,44],[319,0,319,5],[319,29,319,31],[319,32,319,34],[319,35,319,39],[319,40,319,44],[320,0,320,5],[320,29,320,31],[320,32,320,34],[320,35,320,39],[320,40,320,44],[318,6,318,16],[319,6,319,16],[320,6,320,16],[318,17,318,28],[319,17,319,28],[320,17,320,28],[321,0,321,5],[321,29,321,31],[321,32,321,34],[321,35,321,39],[321,40,321,44],[316,0,316,5],[316,29,316,31],[316,32,316,34],[316,35,316,39],[316,40,316,44],[317,0,317,5],[317,29,317,31],[317,32,317,34],[317,35,317,39],[317,40,317,44],[315,6,315,16],[316,6,316,16],[317,6,317,16],[315,17,315,28],[316,17,316,28],[317,17,317,28],[318,0,318,5],[318,29,318,31],[318,32,318,34],[318,35,318,39],[318,40,318,44],[313,0,313,5],[313,29,313,31],[313,32,313,34],[313,35,313,39],[313,40,313,44],[314,0,314,5],[314,29,314,31],[314,32,314,34],[314,35,314,39],[314,40,314,44],[312,6,312,16],[313,6,313,16],[314,6,314,16],[312,17,312,28],[313,17,313,28],[314,17,314,28],[315,0,315,5],[315,29,315,31],[315,32,315,34],[315,35,315,39],[315,40,315,44],[310,0,310,5],[310,29,310,31],[310,32,310,34],[310,35,310,39],[310,40,310,44],[311,0,311,5],[311,29,311,31],[311,32,311,34],[311,35,311,39],[311,40,311,44],[309,6,309,16],[310,6,310,16],[311,6,311,16],[309,17,309,28],[310,17,310,28],[311,17,311,28],[312,0,312,5],[312,29,312,31],[312,32,312,34],[312,35,312,39],[312,40,312,44],[307,0,307,5],[307,29,307,31],[307,32,307,34],[307,35,307,39],[307,40,307,44],[308,0,308,5],[308,29,308,31],[308,32,308,34],[308,35,308,39],[308,40,308,44],[306,6,306,16],[307,6,307,16],[308,6,308,16],[306,17,306,28],[307,17,307,28],[308,17,308,28],[309,0,309,5],[309,29,309,31],[309,32,309,34],[309,35,309,39],[309,40,309,44],[304,0,304,5],[304,29,304,31],[304,32,304,34],[304,35,304,39],[304,40,304,44],[305,0,305,5],[305,29,305,31],[305,32,305,34],[305,35,305,39],[305,40,305,44],[303,6,303,16],[304,6,304,16],[305,6,305,16],[303,17,303,28],[304,17,304,28],[305,17,305,28],[306,0,306,5],[306,29,306,31],[306,32,306,34],[306,35,306,39],[306,40,306,44],[301,0,301,5],[301,29,301,31],[301,32,301,34],[301,35,301,39],[301,40,301,44],[302,0,302,5],[302,29,302,31],[302,32,302,34],[302,35,302,39],[302,40,302,44],[300,6,300,16],[301,6,301,16],[302,6,302,16],[300,17,300,28],[301,17,301,28],[302,17,302,28],[303,0,303,5],[303,29,303,31],[303,32,303,34],[303,35,303,39],[303,40,303,44],[298,0,298,5],[298,29,298,31],[298,32,298,34],[298,35,298,39],[298,40,298,44],[299,0,299,5],[299,29,299,31],[299,32,299,34],[299,35,299,39],[299,40,299,44],[297,6,297,16],[298,6,298,16],[299,6,299,16],[297,17,297,28],[298,17,298,28],[299,17,299,28],[300,0,300,5],[300,29,300,31],[300,32,300,34],[300,35,300,39],[300,40,300,44],[295,0,295,5],[295,29,295,31],[295,32,295,34],[295,35,295,39],[295,40,295,44],[296,0,296,5],[296,29,296,31],[296,32,296,34],[296,35,296,39],[296,40,296,44],[294,6,294,16],[295,6,295,16],[296,6,296,16],[294,17,294,28],[295,17,295,28],[296,17,296,28],[297,0,297,5],[297,29,297,31],[297,32,297,34],[297,35,297,39],[297,40,297,44],[292,0,292,5],[292,29,292,31],[292,32,292,34],[292,35,292,39],[292,40,292,44],[293,0,293,5],[293,29,293,31],[293,32,293,34],[293,35,293,39],[293,40,293,44],[291,6,291,16],[292,6,292,16],[293,6,293,16],[291,17,291,28],[292,17,292,28],[293,17,293,28],[294,0,294,5],[294,29,294,31],[294,32,294,34],[294,35,294,39],[294,40,294,44],[289,0,289,5],[289,29,289,31],[289,32,289,34],[289,35,289,39],[289,40,289,44],[290,0,290,5],[290,29,290,31],[290,32,290,34],[290,35,290,39],[290,40,290,44],[288,6,288,16],[289,6,289,16],[290,6,290,16],[288,17,288,28],[289,17,289,28],[290,17,290,28],[291,0,291,5],[291,29,291,31],[291,32,291,34],[291,35,291,39],[291,40,291,44],[286,0,286,5],[286,29,286,31],[286,32,286,34],[286,35,286,39],[286,40,286,44],[287,0,287,5],[287,29,287,31],[287,32,287,34],[287,35,287,39],[287,40,287,44],[285,6,285,16],[286,6,286,16],[287,6,287,16],[285,17,285,28],[286,17,286,28],[287,17,287,28],[288,0,288,5],[288,29,288,31],[288,32,288,34],[288,35,288,39],[288,40,288,44],[283,0,283,5],[283,29,283,31],[283,32,283,34],[283,35,283,39],[283,40,283,44],[284,0,284,5],[284,29,284,31],[284,32,284,34],[284,35,284,39],[284,40,284,44],[282,6,282,16],[283,6,283,16],[284,6,284,16],[282,17,282,28],[283,17,283,28],[284,17,284,28],[285,0,285,5],[285,29,285,31],[285,32,285,34],[285,35,285,39],[285,40,285,44],[280,0,280,5],[280,29,280,31],[280,32,280,34],[280,35,280,39],[280,40,280,44],[281,0,281,5],[281,29,281,31],[281,32,281,34],[281,35,281,39],[281,40,281,44],[279,6,279,16],[280,6,280,16],[281,6,281,16],[279,17,279,28],[280,17,280,28],[281,17,281,28],[282,0,282,5],[282,29,282,31],[282,32,282,34],[282,35,282,39],[282,40,282,44],[277,0,277,5],[277,29,277,31],[277,32,277,34],[277,35,277,39],[277,40,277,44],[278,0,278,5],[278,29,278,31],[278,32,278,34],[278,35,278,39],[278,40,278,44],[276,6,276,16],[277,6,277,16],[278,6,278,16],[276,17,276,28],[277,17,277,28],[278,17,278,28],[279,0,279,5],[279,29,279,31],[279,32,279,34],[279,35,279,39],[279,40,279,44],[274,0,274,5],[274,29,274,31],[274,32,274,34],[274,35,274,39],[274,40,274,44],[275,0,275,5],[275,29,275,31],[275,32,275,34],[275,35,275,39],[275,40,275,44],[273,6,273,16],[274,6,274,16],[275,6,275,16],[273,17,273,28],[274,17,274,28],[275,17,275,28],[276,0,276,5],[276,29,276,31],[276,32,276,34],[276,35,276,39],[276,40,276,44],[271,0,271,5],[271,29,271,31],[271,32,271,34],[271,35,271,39],[271,40,271,44],[272,0,272,5],[272,29,272,31],[272,32,272,34],[272,35,272,39],[272,40,272,44],[270,6,270,16],[271,6,271,16],[272,6,272,16],[270,17,270,28],[271,17,271,28],[272,17,272,28],[273,0,273,5],[273,29,273,31],[273,32,273,34],[273,35,273,39],[273,40,273,44],[268,0,268,5],[268,29,268,31],[268,32,268,34],[268,35,268,39],[268,40,268,44],[269,0,269,5],[269,29,269,31],[269,32,269,34],[269,35,269,39],[269,40,269,44],[267,6,267,16],[268,6,268,16],[269,6,269,16],[267,17,267,28],[268,17,268,28],[269,17,269,28],[270,0,270,5],[270,29,270,31],[270,32,270,34],[270,35,270,39],[270,40,270,44],[265,0,265,5],[265,29,265,31],[265,32,265,34],[265,35,265,39],[265,40,265,44],[266,0,266,5],[266,29,266,31],[266,32,266,34],[266,35,266,39],[266,40,266,44],[264,6,264,16],[265,6,265,16],[266,6,266,16],[265,17,265,28],[266,17,266,28],[267,0,267,5],[267,29,267,31],[267,32,267,34],[267,35,267,39],[267,40,267,44],[262,0,262,5],[262,29,262,31],[262,32,262,34],[262,35,262,39],[262,40,262,44],[263,0,263,5],[263,29,263,31],[263,32,263,34],[263,35,263,39],[263,40,263,44],[261,6,261,16],[262,6,262,16],[263,6,263,16],[264,0,264,5],[264,29,264,31],[264,32,264,34],[264,35,264,39],[264,40,264,44],[259,0,259,5],[259,29,259,31],[259,32,259,34],[259,35,259,39],[259,40,259,44],[260,0,260,5],[260,29,260,31],[260,32,260,34],[260,35,260,39],[260,40,260,44],[258,6,258,16],[259,6,259,16],[260,6,260,16],[261,0,261,5],[261,29,261,31],[261,32,261,34],[261,35,261,39],[261,40,261,44],[255,0,255,5],[255,29,255,31],[255,32,255,34],[255,35,255,39],[255,40,255,44],[256,0,256,5],[256,29,256,31],[256,32,256,34],[256,35,256,39],[256,40,256,44],[257,0,257,5],[257,29,257,31],[257,32,257,34],[257,35,257,39],[257,40,257,44],[258,0,258,5],[258,29,258,31],[258,32,258,34],[258,35,258,39],[258,40,258,44],[252,0,252,5],[252,29,252,31],[252,32,252,34],[252,35,252,39],[252,40,252,44],[253,0,253,5],[253,29,253,31],[253,32,253,34],[253,35,253,39],[253,40,253,44],[254,0,254,5],[254,29,254,31],[254,32,254,34],[254,35,254,39],[254,40,254,44],[249,0,249,5],[249,29,249,31],[249,32,249,34],[249,35,249,39],[249,40,249,44],[250,0,250,5],[250,29,250,31],[250,32,250,34],[250,35,250,39],[250,40,250,44],[251,0,251,5],[251,29,251,31],[251,32,251,34],[251,35,251,39],[251,40,251,44],[252,17,252,28],[239,0,239,5],[239,29,239,31],[239,32,239,34],[239,35,239,39],[239,40,239,44],[246,0,246,5],[246,29,246,31],[246,32,246,34],[246,35,246,39],[246,40,246,44],[247,0,247,5],[247,29,247,31],[247,32,247,34],[247,35,247,39],[247,40,247,44],[243,0,243,5],[243,29,243,31],[243,32,243,34],[243,35,243,39],[243,40,243,44],[244,0,244,5],[244,29,244,31],[244,32,244,34],[244,35,244,39],[244,40,244,44],[245,0,245,5],[245,29,245,31],[245,32,245,34],[245,35,245,39],[245,40,245,44],[377,0,377,5],[377,29,377,31],[377,32,377,34],[377,35,377,39],[377,40,377,44],[376,29,376,31],[376,32,376,34],[376,35,376,39],[376,40,376,44],[374,6,374,16],[375,6,375,16],[376,6,376,16],[240,0,240,5],[240,29,240,31],[240,32,240,34],[240,35,240,39],[240,40,240,44],[241,0,241,5],[241,29,241,31],[241,32,241,34],[241,35,241,39],[241,40,241,44],[242,0,242,5],[242,29,242,31],[242,32,242,34],[242,35,242,39],[242,40,242,44],[248,0,248,5],[248,29,248,31],[248,32,248,34],[248,35,248,39],[248,40,248,44],[378,0,378,5],[378,29,378,31],[378,32,378,34],[378,35,378,39],[378,40,378,44],[230,0,230,5],[230,29,230,31],[230,32,230,34],[230,35,230,39],[230,40,230,44],[231,0,231,5],[231,29,231,31],[231,32,231,34],[231,35,231,39],[231,40,231,44],[232,0,232,5],[232,29,232,31],[232,32,232,34],[232,35,232,39],[232,40,232,44],[233,0,233,5],[374,0,374,5],[374,29,374,31],[374,32,374,34],[374,35,374,39],[374,40,374,44],[375,0,375,5],[375,29,375,31],[375,32,375,34],[375,35,375,39],[375,40,375,44],[376,0,376,5],[371,0,371,5],[371,29,371,31],[371,32,371,34],[371,35,371,39],[371,40,371,44],[372,0,372,5],[372,29,372,31],[372,32,372,34],[372,35,372,39],[372,40,372,44],[373,0,373,5],[373,29,373,31],[373,32,373,34],[373,35,373,39],[373,40,373,44],[371,6,371,16],[372,6,372,16],[373,6,373,16],[371,17,371,28],[372,17,372,28],[373,17,373,28],[368,0,368,5],[368,29,368,31],[368,32,368,34],[368,35,368,39],[368,40,368,44],[369,0,369,5],[369,29,369,31],[369,32,369,34],[369,35,369,39],[369,40,369,44],[370,0,370,5],[370,29,370,31],[370,32,370,34],[370,35,370,39],[370,40,370,44],[368,6,368,16],[369,6,369,16],[370,6,370,16],[368,17,368,28],[369,17,369,28],[370,17,370,28],[365,0,365,5],[365,29,365,31],[365,32,365,34],[365,35,365,39],[365,40,365,44],[366,0,366,5],[366,29,366,31],[366,32,366,34],[366,35,366,39],[366,40,366,44],[367,0,367,5],[367,29,367,31],[367,32,367,34]],"merged_total":4844,"flags":["merged_cut"]}
[]
[]
[]
[]
["Planilha:",null,null,null,null,"ATUALIZAÇÃO CADASTRAL"]
["DADOS DO ASSOCIADO",null,null,null,null,null,null,null,null,null,null,null,null,null,null,null,null,null,null,null,null,null,null,null,null,null,null,null,null,null,null,null,null,null,null,null,null,null,null,null,null,null,null,null,null,{"$f":"IF(OR(F10=\"\",AJ10=\"\",F12=\"\",AH12=\"\",G14=\"\",R14=\"\",AC14=\"\"),\"AUSENTE\",\"OK\")","v":"AUSENTE"}]
[]
["TIPO DE PESSOA:",null,null,null,null,null,"FÍSICA"]
[]
["NOME:",null,null,null,null,null,null,null,null,null,null,null,null,null,null,null,null,null,null,null,null,null,null,null,null,null,null,null,null,null,null,null,"CPF:"]
[]
["ENDEREÇO:",null,null,null,null,null,null,null,null,null,null,null,null,null,null,null,null,null,null,null,null,null,null,null,null,null,null,null,null,"CIDADE:"]
[]
["TELEFONES:",null,null,null,null,null,null,null,null,null,null,null,null,null,null,null,null,null,null,null,null,null,null,null,"EMAIL:"]
[]
["NÍVEL DE ESCOLARIDADE:",null,null,null,null,null,null,null,null,null,null,null,null,null,null,null,null,null,null,null,null,null,null,null,null,null,null,null,null,null,"ESTADO CIVIL:"]
[]
["NOME DO CÔNJUGE:",null,null,null,null,null,null,null,null,null,null,null,null,null,null,null,null,null,null,null,null,null,null,null,null,null,null,null,null,null,null,null,"CPF:"]
[]
[]
["NOME:",null,null,null,null,null,null,null,null,null,null,null,null,null,null,null,null,null,null,null,null,null,null,null,null,null,null,null,null,null,null,null,"CNPJ:"]
[]
["ENDEREÇO:",null,null,null,null,null,null,null,null,null,null,null,null,null,null,null,null,null,null,null,null,null,null,null,null,null,null,null,null,"CIDADE:"]
[]
["CONTA CORRENTE:",null,null,null,null,null,null,null,null,null,null,null,"TELEFONE:",null,null,null,null,null,null,null,null,null,null,null,"EMAIL:"]
[]
["TIPO EMPRESA:",null,null,null,null,null,null,null,null,null,null,null,null,null,null,null,null,null,null,"CAPITAL SOCIAL:"]
[]
["QUADRO SOCIETÁRIO"]
[]
["SÓCIOS"]
["RELACIONAMENTO",null,null,null,null,null,null,null,"NOME",null,null,null,null,null,null,null,null,null,null,null,null,null,null,null,null,null,null,null,null,null,"CPF / CNPJ",null,null,null,null,null,"PERCENTUAL DO CAPITAL SOCIAL (%)"]
[null,null,null,null,null,null,null,null,null,null,null,null,null,null,null,null,null,null,null,null,null,null,null,null,null,null,null,null,null,null,null,null,null,null,null,null,null,null,null,null,null,null,null,null,null,null,{"$f":"SUM(AV32:AV51)","v":2},1]
[null,null,null,null,null,null,null,null,null,null,null,null,null,null,null,null,null,null,null,null,null,null,null,null,null,null,null,null,null,null,null,null,null,null,null,null,null,null,null,null,null,null,null,null,null,null,null,1]
[]
[]
[]
[]
[]
[]
[]
[]
[]
[]
[]
[]
[]
[]
[]
[]
[]
[]
["REPONSÁVEL PELO LEVANTAMENTO",null,null,null,null,null,null,null,null,null,null,null,null,null,null,null,null,null,null,null,null,null,null,null,null,null,null,null,null,null,null,null,null,null,null,null,null,null,null,null,null,null,null,null,null,{"$f":"IF(OR(F55=\"\",AI55=\"\",F57=\"\",AH57=\"\",F59=\"\",X59=\"\",H61=\"\",AI61=\"\"),\"AUSENTE\",\"OK\")","v":"AUSENTE"}]
[]
["ELABORADOR:",null,null,null,null,null,null,null,null,null,null,null,null,null,null,null,null,null,null,null,null,null,null,null,null,null,null,null,null,null,"CPF/CNPJ:",null,null,null,{"$f":"IFERROR(VLOOKUP(F55,'EMPRESAS ELABORADORAS'!A2:F11,2,0),\"-\")","v":"-"}]
[]
["ENDEREÇO:",null,null,null,null,{"$f":"IFERROR(VLOOKUP(F55,'EMPRESAS ELABORADORAS'!A2:F11,3,0),\"-\")","v":"-"},null,null,null,null,null,null,null,null,null,null,null,null,null,null,null,null,null,null,null,null,null,null,null,"CIDADE:",null,null,null,{"$f":"IFERROR(VLOOKUP(F55,'EMPRESAS ELABORADORAS'!A2:F11,4,0),\"-\")","v":"-"}]
[]
["TELEFONE:",null,null,null,null,{"$f":"IFERROR(VLOOKUP(F55,'EMPRESAS ELABORADORAS'!A2:F11,5,0),\"-\")","v":"-"},null,null,null,null,null,null,null,null,null,null,null,null,null,"EMAIL:",null,null,null,{"$f":"IFERROR(VLOOKUP(F55,'EMPRESAS ELABORADORAS'!A2:F11,6,0),\"-\")","v":"-"}]
[]
["RESP. TÉCNICO:",null,null,null,null,null,null,null,null,null,null,null,null,null,null,null,null,null,null,null,null,null,null,null,null,null,null,null,null,null,"CREA / CFTA:"]
[]
["LEVANTAMENTO PATRIMONIAL",null,null,null,null,null,null,null,null,null,null,null,null,null,null,null,null,null,null,null,null,null,null,null,null,null,null,null,null,null,null,null,null,null,null,null,null,null,null,null,null,null,null,null,null,{"$f":"IF(OR(F65=\"\",AI65=\"\",F68=\"\",AH68=\"\",F70=\"\",X70=\"\",H72=\"\",AI72=\"\"),\"AUSENTE\",\"OK\")","v":"AUSENTE"}]
[]
["BENS IMÓVEIS"]
[]
["IMÓVEIS RURAIS E URBANOS"]
["REF",null,"TIPO",null,null,"DESCRIÇÃO",null,null,null,null,null,null,null,null,null,null,null,null,null,null,null,"PARTICIPAÇÃO",null,null,null,null,null,null,"DOCUMENTO",null,null,null,null,"PERCEN.\n%",null,null,"VALOR BEM\n (R$)",null,null,null,"VALOR %\n(R$)"]
[1,null,null,null,null,null,null,null,null,null,null,null,null,null,null,null,null,null,null,null,null,null,null,null,null,null,null,null,null,null,null,null,null,null,null,null,null,null,null,null,{"$f":"IF(OR(AH69=\"\",AK69=\"\"),\"\",AK69*AH69)","v":""},null,null,null,null,null,{"$f":"SUM(AV69:AV168)","v":1},1,null,{"$f":"IF(A69<>\"\",_xlfn.CONCAT(\"IMÓVEL \",A69),\"\")","v":"IMÓVEL 1"},{"$f":"_xlfn.CONCAT(\"AX69:AX\"&(69+CONT_IMOVEIS-1))","v":"AX69:AX69"}]
[{"$f":"IF(C70<>\"\",A69+1,\"\")","v":""},null,null,null,null,null,null,null,null,null,null,null,null,null,null,null,null,null,null,null,null,null,null,null,null,null,null,null,null,null,null,null,null,null,null,null,null,null,null,null,{"$f":"IF(OR(AH70=\"\",AK70=\"\"),\"\",AK70*AH70)","v":""},null,null,null,null,null,null,null,null,{"$f":"IF(A70<>\"\",_xlfn.CONCAT(\"IMÓVEL \",A70),\"\")","v":""}]
[{"$f":"IF(C71<>\"\",A70+1,\"\")","v":""},null,null,null,null,null,null,null,null,null,null,null,null,null,null,null,null,null,null,null,null,null,null,null,null,null,null,null,null,null,null,null,null,null,null,null,null,null,null,null,{"$f":"IF(OR(AH71=\"\",AK71=\"\"),\"\",AK71*AH71)","v":""},null,null,null,null,null,null,null,null,""]
["",null,null,null,null,null,null,null,null,null,null,null,null,null,null,null,null,null,null,null,null,null,null,null,null,null,null,null,null,null,null,null,null,null,null,null,null,null,null,null,"",null,null,null,null,null,null,null,null,""]
["",null,null,null,null,null,null,null,null,null,null,null,null,null,null,null,null,null,null,null,null,null,null,null,null,null,null,null,null,null,null,null,null,null,null,null,null,null,null,null,"",null,null,null,null,null,null,null,null,""]
["",null,null,null,null,null,null,null,null,null,null,null,null,null,null,null,null,null,null,null,null,null,null,null,null,null,null,null,null,null,null,null,null,null,null,null,null,null,null,null,"",null,null,null,null,null,null,null,null,""]
["",null,null,null,null,null,null,null,null,null,null,null,null,null,null,null,null,null,null,null,null,null,null,null,null,null,null,null,null,null,null,null,null,null,null,null,null,null,null,null,"",null,null,null,null,null,null,null,null,""]
["",null,null,null,null,null,null,null,null,null,null,null,null,null,null,null,null,null,null,null,null,null,null,null,null,null,null,null,null,null,null,null,null,null,null,null,null,null,null,null,"",null,null,null,null,null,null,null,null,""]
["",null,null,null,null,null,null,null,null,null,null,null,null,null,null,null,null,null,null,null,null,null,null,null,null,null,null,null,null,null,null,null,null,null,null,null,null,null,null,null,"",null,null,null,null,null,null,null,null,""]
["",null,null,null,null,null,null,null,null,null,null,null,null,null,null,null,null,null,null,null,null,null,null,null,null,null,null,null,null,null,null,null,null,null,null,null,null,null,null,null,"",null,null,null,null,null,null,null,null,""]
["",null,null,null,null,null,null,null,null,null,null,null,null,null,null,null,null,null,null,null,null,null,null,null,null,null,null,null,null,null,null,null,null,null,null,null,null,null,null,null,"",null,null,null,null,null,null,null,null,""]
["",null,null,null,null,null,null,null,null,null,null,null,null,null,null,null,null,null,null,null,null,null,null,null,null,null,null,null,null,null,null,null,null,null,null,null,null,null,null,null,"",null,null,null,null,null,null,null,null,""]
["",null,null,null,null,null,null,null,null,null,null,null,null,null,null,null,null,null,null,null,null,null,null,null,null,null,null,null,null,null,null,null,null,null,null,null,null,null,null,null,"",null,null,null,null,null,null,null,null,""]
["",null,null,null,null,null,null,null,null,null,null,null,null,null,null,null,null,null,null,null,null,null,null,null,null,null,null,null,null,null,null,null,null,null,null,null,null,null,null,null,"",null,null,null,null,null,null,null,null,""]
["",null,null,null,null,null,null,null,null,null,null,null,null,null,null,null,null,null,null,null,null,null,null,null,null,null,null,null,null,null,null,null,null,null,null,null,null,null,null,null,"",null,null,null,null,null,null,null,null,""]
["",null,null,null,null,null,null,null,null,null,null,null,null,null,null,null,null,null,null,null,null,null,null,null,null,null,null,null,null,null,null,null,null,null,null,null,null,null,null,null,"",null,null,null,null,null,null,null,null,""]
["",null,null,null,null,null,null,null,null,null,null,null,null,null,null,null,null,null,null,null,null,null,null,null,null,null,null,null,null,null,null,null,null,null,null,null,null,null,null,null,"",null,null,null,null,null,null,null,null,""]
["",null,null,null,null,null,null,null,null,null,null,null,null,null,null,null,null,null,null,null,null,null,null,null,null,null,null,null,null,null,null,null,null,null,null,null,null,null,null,null,"",null,null,null,null,null,null,null,null,""]
["",null,null,null,null,null,null,null,null,null,null,null,null,null,null,null,null,null,null,null,null,null,null,null,null,null,null,null,null,null,null,null,null,null,null,null,null,null,null,null,"",null,null,null,null,null,null,null,null,""]
["",null,null,null,null,null,null,null,null,null,null,null,null,null,null,null,null,null,null,null,null,null,null,null,null,null,null,null,null,null,null,null,null,null,null,null,null,null,null,null,"",null,null,null,null,null,null,null,null,""]
["",null,null,null,null,null,null,null,null,null,null,null,null,null,null,null,null,null,null,null,null,null,null,null,null,null,null,null,null,null,null,null,null,null,null,null,null,null,null,null,"",null,null,null,null,null,null,null,null,""]
["",null,null,null,null,null,null,null,null,null,null,null,null,null,null,null,null,null,null,null,null,null,null,null,null,null,null,null,null,null,null,null,null,null,null,null,null,null,null,null,"",null,null,null,null,null,null,null,null,""]
["",null,null,null,null,null,null,null,null,null,null,null,null,null,null,null,null,null,null,null,null,null,null,null,null,null,null,null,null,null,null,null,null,null,null,null,null,null,null,null,"",null,null,null,null,null,null,null,null,""]
["",null,null,null,null,null,null,null,null,null,null,null,null,null,null,null,null,null,null,null,null,null,null,null,null,null,null,null,null,null,null,null,null,null,null,null,null,null,null,null,"",null,null,null,null,null,null,null,null,""]
["",null,null,null,null,null,null,null,null,null,null,null,null,null,null,null,null,null,null,null,null,null,null,null,null,null,null,null,null,null,null,null,null,null,null,null,null,null,null,null,"",null,null,null,null,null,null,null,null,""]
["",null,null,null,null,null,null,null,null,null,null,null,null,null,null,null,null,null,null,null,null,null,null,null,null,null,null,null,null,null,null,null,null,null,null,null,null,null,null,null,"",null,null,null,null,null,null,null,null,""]
["",null,null,null,null,null,null,null,null,null,null,null,null,null,null,null,null,null,null,null,null,null,null,null,null,null,null,null,null,null,null,null,null,null,null,null,null,null,null,null,"",null,null,null,null,null,null,null,null,""]
["",null,null,null,null,null,null,null,null,null,null,null,null,null,null,null,null,null,null,null,null,null,null,null,null,null,null,null,null,null,null,null,null,null,null,null,null,null,null,null,"",null,null,null,null,null,null,null,null,""]
["",null,null,null,null,null,null,null,null,null,null,null,null,null,null,null,null,null,null,null,null,null,null,null,null,null,null,null,null,null,null,null,null,null,null,null,null,null,null,null,"",null,null,null,null,null,null,null,null,""]
["",null,null,null,null,null,null,null,null,null,null,null,null,null,null,null,null,null,null,null,null,null,null,null,null,null,null,null,null,null,null,null,null,null,null,null,null,null,null,null,"",null,null,null,null,null,null,null,null,""]
["",null,null,null,null,null,null,null,null,null,null,null,null,null,null,null,null,null,null,null,null,null,null,null,null,null,null,null,null,null,null,null,null,null,null,null,null,null,null,null,"",null,null,null,null,null,null,null,null,""]
["",null,null,null,null,null,null,null,null,null,null,null,null,null,null,null,null,null,null,null,null,null,null,null,null,null,null,null,null,null,null,null,null,null,null,null,null,null,null,null,"",null,null,null,null,null,null,null,null,""]
["",null,null,null,null,null,null,null,null,null,null,null,null,null,null,null,null,null,null,null,null,null,null,null,null,null,null,null,null,null,null,null,null,null,null,null,null,null,null,null,"",null,null,null,null,null,null,null,null,""]
["",null,null,null,null,null,null,null,null,null,null,null,null,null,null,null,null,null,null,null,null,null,null,null,null,null,null,null,null,null,null,null,null,null,null,null,null,null,null,null,"",null,null,null,null,null,null,null,null,""]
["",null,null,null,null,null,null,null,null,null,null,null,null,null,null,null,null,null,null,null,null,null,null,null,null,null,null,null,null,null,null,null,null,null,null,null,null,null,null,null,"",null,null,null,null,null,null,null,null,""]
["",null,null,null,null,null,null,null,null,null,null,null,null,null,null,null,null,null,null,null,null,null,null,null,null,null,null,null,null,null,null,null,null,null,null,null,null,null,null,null,"",null,null,null,null,null,null,null,null,""]
["",null,null,null,null,null,null,null,null,null,null,null,null,null,null,null,null,null,null,null,null,null,null,null,null,null,null,null,null,null,null,null,null,null,null,null,null,null,null,null,"",null,null,null,null,null,null,null,null,""]
["",null,null,null,null,null,null,null,null,null,null,null,null,null,null,null,null,null,null,null,null,null,null,null,null,null,null,null,null,null,null,null,null,null,null,null,null,null,null,null,"",null,null,null,null,null,null,null,null,""]
["",null,null,null,null,null,null,null,null,null,null,null,null,null,null,null,null,null,null,null,null,null,null,null,null,null,null,null,null,null,null,null,null,null,null,null,null,null,null,null,"",null,null,null,null,null,null,null,null,""]
["",null,null,null,null,null,null,null,null,null,null,null,null,null,null,null,null,null,null,null,null,null,null,null,null,null,null,null,null,null,null,null,null,null,null,null,null,null,null,null,"",null,null,null,null,null,null,null,null,""]
["",null,null,null,null,null,null,null,null,null,null,null,null,null,null,null,null,null,null,null,null,null,null,null,null,null,null,null,null,null,null,null,null,null,null,null,null,null,null,null,"",null,null,null,null,null,null,null,null,""]
["",null,null,null,null,null,null,null,null,null,null,null,null,null,null,null,null,null,null,null,null,null,null,null,null,null,null,null,null,null,null,null,null,null,null,null,null,null,null,null,"",null,null,null,null,null,null,null,null,""]
["",null,null,null,null,null,null,null,null,null,null,null,null,null,null,null,null,null,null,null,null,null,null,null,null,null,null,null,null,null,null,null,null,null,null,null,null,null,null,null,"",null,null,null,null,null,null,null,null,""]
["",null,null,null,null,null,null,null,null,null,null,null,null,null,null,null,null,null,null,null,null,null,null,null,null,null,null,null,null,null,null,null,null,null,null,null,null,null,null,null,"",null,null,null,null,null,null,null,null,""]
["",null,null,null,null,null,null,null,null,null,null,null,null,null,null,null,null,null,null,null,null,null,null,null,null,null,null,null,null,null,null,null,null,null,null,null,null,null,null,null,"",null,null,null,null,null,null,null,null,""]
["",null,null,null,null,null,null,null,null,null,null,null,null,null,null,null,null,null,null,null,null,null,null,null,null,null,null,null,null,null,null,null,null,null,null,null,null,null,null,null,"",null,null,null,null,null,null,null,null,""]
["",null,null,null,null,null,null,null,null,null,null,null,null,null,null,null,null,null,null,null,null,null,null,null,null,null,null,null,null,null,null,null,null,null,null,null,null,null,null,null,"",null,null,null,null,null,null,null,null,""]
["",null,null,null,null,null,null,null,null,null,null,null,null,null,null,null,null,null,null,null,null,null,null,null,null,null,null,null,null,null,null,null,null,null,null,null,null,null,null,null,"",null,null,null,null,null,null,null,null,""]
["",null,null,null,null,null,null,null,null,null,null,null,null,null,null,null,null,null,null,null,null,null,null,null,null,null,null,null,null,null,null,null,null,null,null,null,null,null,null,null,"",null,null,null,null,null,null,null,null,""]
["",null,null,null,null,null,null,null,null,null,null,null,null,null,null,null,null,null,null,null,null,null,null,null,null,null,null,null,null,null,null,null,null,null,null,null,null,null,null,null,"",null,null,null,null,null,null,null,null,""]
["",null,null,null,null,null,null,null,null,null,null,null,null,null,null,null,null,null,null,null,null,null,null,null,null,null,null,null,null,null,null,null,null,null,null,null,null,null,null,null,"",null,null,null,null,null,null,null,null,""]
["",null,null,null,null,null,null,null,null,null,null,null,null,null,null,null,null,null,null,null,null,null,null,null,null,null,null,null,null,null,null,null,null,null,null,null,null,null,null,null,"",null,null,null,null,null,null,null,null,""]
["",null,null,null,null,null,null,null,null,null,null,null,null,null,null,null,null,null,null,null,null,null,null,null,null,null,null,null,null,null,null,null,null,null,null,null,null,null,null,null,"",null,null,null,null,null,null,null,null,""]
["",null,null,null,null,null,null,null,null,null,null,null,null,null,null,null,null,null,null,null,null,null,null,null,null,null,null,null,null,null,null,null,null,null,null,null,null,null,null,null,"",null,null,null,null,null,null,null,null,""]
["",null,null,null,null,null,null,null,null,null,null,null,null,null,null,null,null,null,null,null,null,null,null,null,null,null,null,null,null,null,null,null,null,null,null,null,null,null,null,null,"",null,null,null,null,null,null,null,null,""]
["",null,null,null,null,null,null,null,null,null,null,null,null,null,null,null,null,null,null,null,null,null,null,null,null,null,null,null,null,null,null,null,null,null,null,null,null,null,null,null,"",null,null,null,null,null,null,null,null,""]
["",null,null,null,null,null,null,null,null,null,null,null,null,null,null,null,null,null,null,null,null,null,null,null,null,null,null,null,null,null,null,null,null,null,null,null,null,null,null,null,"",null,null,null,null,null,null,null,null,""]
["",null,null,null,null,null,null,null,null,null,null,null,null,null,null,null,null,null,null,null,null,null,null,null,null,null,null,null,null,null,null,null,null,null,null,null,null,null,null,null,"",null,null,null,null,null,null,null,null,""]
["",null,null,null,null,null,null,null,null,null,null,null,null,null,null,null,null,null,null,null,null,null,null,null,null,null,null,null,null,null,null,null,null,null,null,null,null,null,null,null,"",null,null,null,null,null,null,null,null,""]
["",null,null,null,null,null,null,null,null,null,null,null,null,null,null,null,null,null,null,null,null,null,null,null,null,null,null,null,null,null,null,null,null,null,null,null,null,null,null,null,"",null,null,null,null,null,null,null,null,""]
["",null,null,null,null,null,null,null,null,null,null,null,null,null,null,null,null,null,null,null,null,null,null,null,null,null,null,null,null,null,null,null,null,null,null,null,null,null,null,null,"",null,null,null,null,null,null,null,null,""]
["",null,null,null,null,null,null,null,null,null,null,null,null,null,null,null,null,null,null,null,null,null,null,null,null,null,null,null,null,null,null,null,null,null,null,null,null,null,null,null,"",null,null,null,null,null,null,null,null,""]
["",null,null,null,null,null,null,null,null,null,null,null,null,null,null,null,null,null,null,null,null,null,null,null,null,null,null,null,null,null,null,null,null,null,null,null,null,null,null,null,"",null,null,null,null,null,null,null,null,""]
["",null,null,null,null,null,null,null,null,null,null,null,null,null,null,null,null,null,null,null,null,null,null,null,null,null,null,null,null,null,null,null,null,null,null,null,null,null,null,null,"",null,null,null,null,null,null,null,null,""]
["",null,null,null,null,null,null,null,null,null,null,null,null,null,null,null,null,null,null,null,null,null,null,null,null,null,null,null,null,null,null,null,null,null,null,null,null,null,null,null,"",null,null,null,null,null,null,null,null,""]
["",null,null,null,null,null,null,null,null,null,null,null,null,null,null,null,null,null,null,null,null,null,null,null,null,null,null,null,null,null,null,null,null,null,null,null,null,null,null,null,"",null,null,null,null,null,null,null,null,{"$f":"IF(A134<>\"\",_xlfn.CONCAT(\"IMÓVEL \",A134),\"\")","v":""}]
[{"$f":"IF(C135<>\"\",A134+1,\"\")","v":""},null,null,null,null,null,null,null,null,null,null,null,null,null,null,null,null,null,null,null,null,null,null,null,null,null,null,null,null,null,null,null,null,null,null,null,null,null,null,null,"",null,null,null,null,null,null,null,null,""]
["",null,null,null,null,null,null,null,null,null,null,null,null,null,null,null,null,null,null,null,null,null,null,null,null,null,null,null,null,null,null,null,null,null,null,null,null,null,null,null,"",null,null,null,null,null,null,null,null,""]
["",null,null,null,null,null,null,null,null,null,null,null,null,null,null,null,null,null,null,null,null,null,null,null,null,null,null,null,null,null,null,null,null,null,null,null,null,null,null,null,"",null,null,null,null,null,null,null,null,""]
["",null,null,null,null,null,null,null,null,null,null,null,null,null,null,null,null,null,null,null,null,null,null,null,null,null,null,null,null,null,null,null,null,null,null,null,null,null,null,null,"",null,null,null,null,null,null,null,null,""]
["",null,null,null,null,null,null,null,null,null,null,null,null,null,null,null,null,null,null,null,null,null,null,null,null,null,null,null,null,null,null,null,null,null,null,null,null,null,null,null,"",null,null,null,null,null,null,null,null,""]
["",null,null,null,null,null,null,null,null,null,null,null,null,null,null,null,null,null,null,null,null,null,null,null,null,null,null,null,null,null,null,null,null,null,null,null,null,null,null,null,"",null,null,null,null,null,null,null,null,""]
["",null,null,null,null,null,null,null,null,null,null,null,null,null,null,null,null,null,null,null,null,null,null,null,null,null,null,null,null,null,null,null,null,null,null,null,null,null,null,null,"",null,null,null,null,null,null,null,null,""]
["",null,null,null,null,null,null,null,null,null,null,null,null,null,null,null,null,null,null,null,null,null,null,null,null,null,null,null,null,null,null,null,null,null,null,null,null,null,null,null,{"$f":"IF(OR(AH142=\"\",AK142=\"\"),\"\",AK142*AH142)","v":""},null,null,null,null,null,null,null,null,""]
["",null,null,null,null,null,null,null,null,null,null,null,null,null,null,null,null,null,null,null,null,null,null,null,null,null,null,null,null,null,null,null,null,null,null,null,null,null,null,null,"",null,null,null,null,null,null,null,null,""]
["",null,null,null,null,null,null,null,null,null,null,null,null,null,null,null,null,null,null,null,null,null,null,null,null,null,null,null,null,null,null,null,null,null,null,null,null,null,null,null,"",null,null,null,null,null,null,null,null,""]
["",null,null,null,null,null,null,null,null,null,null,null,null,null,null,null,null,null,null,null,null,null,null,null,null,null,null,null,null,null,null,null,null,null,null,null,null,null,null,null,"",null,null,null,null,null,null,null,null,""]
["",null,null,null,null,null,null,null,null,null,null,null,null,null,null,null,null,null,null,null,null,null,null,null,null,null,null,null,null,null,null,null,null,null,null,null,null,null,null,null,"",null,null,null,null,null,null,null,null,""]
["",null,null,null,null,null,null,null,null,null,null,null,null,null,null,null,null,null,null,null,null,null,null,null,null,null,null,null,null,null,null,null,null,null,null,null,null,null,null,null,"",null,null,null,null,null,null,null,null,""]
["",null,null,null,null,null,null,null,null,null,null,null,null,null,null,null,null,null,null,null,null,null,null,null,null,null,null,null,null,null,null,null,null,null,null,null,null,null,null,null,"",null,null,null,null,null,null,null,null,""]
["",null,null,null,null,null,null,null,null,null,null,null,null,null,null,null,null,null,null,null,null,null,null,null,null,null,null,null,null,null,null,null,null,null,null,null,null,null,null,null,"",null,null,null,null,null,null,null,null,""]
["",null,null,null,null,null,null,null,null,null,null,null,null,null,null,null,null,null,null,null,null,null,null,null,null,null,null,null,null,null,null,null,null,null,null,null,null,null,null,null,"",null,null,null,null,null,null,null,null,""]
["",null,null,null,null,null,null,null,null,null,null,null,null,null,null,null,null,null,null,null,null,null,null,null,null,null,null,null,null,null,null,null,null,null,null,null,null,null,null,null,"",null,null,null,null,null,null,null,null,""]
["",null,null,null,null,null,null,null,null,null,null,null,null,null,null,null,null,null,null,null,null,null,null,null,null,null,null,null,null,null,null,null,null,null,null,null,null,null,null,null,"",null,null,null,null,null,null,null,null,""]
["",null,null,null,null,null,null,null,null,null,null,null,null,null,null,null,null,null,null,null,null,null,null,null,null,null,null,null,null,null,null,null,null,null,null,null,null,null,null,null,"",null,null,null,null,null,null,null,null,""]
["",null,null,null,null,null,null,null,null,null,null,null,null,null,null,null,null,null,null,null,null,null,null,null,null,null,null,null,null,null,null,null,null,null,null,null,null,null,null,null,"",null,null,null,null,null,null,null,null,""]
["",null,null,null,null,null,null,null,null,null,null,null,null,null,null,null,null,null,null,null,null,null,null,null,null,null,null,null,null,null,null,null,null,null,null,null,null,null,null,null,"",null,null,null,null,null,null,null,null,""]
["",null,null,null,null,null,null,null,null,null,null,null,null,null,null,null,null,null,null,null,null,null,null,null,null,null,null,null,null,null,null,null,null,null,null,null,null,null,null,null,"",null,null,null,null,null,null,null,null,""]
["",null,null,null,null,null,null,null,null,null,null,null,null,null,null,null,null,null,null,null,null,null,null,null,null,null,null,null,null,null,null,null,null,null,null,null,null,null,null,null,"",null,null,null,null,null,null,null,null,""]
["",null,null,null,null,null,null,null,null,null,null,null,null,null,null,null,null,null,null,null,null,null,null,null,null,null,null,null,null,null,null,null,null,null,null,null,null,null,null,null,"",null,null,null,null,null,null,null,null,""]
["",null,null,null,null,null,null,null,null,null,null,null,null,null,null,null,null,null,null,null,null,null,null,null,null,null,null,null,null,null,null,null,null,null,null,null,null,null,null,null,"",null,null,null,null,null,null,null,null,""]
["",null,null,null,null,null,null,null,null,null,null,null,null,null,null,null,null,null,null,null,null,null,null,null,null,null,null,null,null,null,null,null,null,null,null,null,null,null,null,null,"",null,null,null,null,null,null,null,null,""]
["",null,null,null,null,null,null,null,null,null,null,null,null,null,null,null,null,null,null,null,null,null,null,null,null,null,null,null,null,null,null,null,null,null,null,null,null,null,null,null,"",null,null,null,null,null,null,null,null,""]
["",null,null,null,null,null,null,null,null,null,null,null,null,null,null,null,null,null,null,null,null,null,null,null,null,null,null,null,null,null,null,null,null,null,null,null,null,null,null,null,"",null,null,null,null,null,null,null,null,""]
["",null,null,null,null,null,null,null,null,null,null,null,null,null,null,null,null,null,null,null,null,null,null,null,null,null,null,null,null,null,null,null,null,null,null,null,null,null,null,null,"",null,null,null,null,null,null,null,null,""]
["",null,null,null,null,null,null,null,null,null,null,null,null,null,null,null,null,null,null,null,null,null,null,null,null,null,null,null,null,null,null,null,null,null,null,null,null,null,null,null,"",null,null,null,null,null,null,null,null,""]
["",null,null,null,null,null,null,null,null,null,null,null,null,null,null,null,null,null,null,null,null,null,null,null,null,null,null,null,null,null,null,null,null,null,null,null,null,null,null,null,"",null,null,null,null,null,null,null,null,""]
["",null,null,null,null,null,null,null,null,null,null,null,null,null,null,null,null,null,null,null,null,null,null,null,null,null,null,null,null,null,null,null,null,null,null,null,null,null,null,null,"",null,null,null,null,null,null,null,null,""]
["",null,null,null,null,null,null,null,null,null,null,null,null,null,null,null,null,null,null,null,null,null,null,null,null,null,null,null,null,null,null,null,null,null,null,null,null,null,null,null,"",null,null,null,null,null,null,null,null,""]
["",null,null,null,null,null,null,null,null,null,null,null,null,null,null,null,null,null,null,null,null,null,null,null,null,null,null,null,null,null,null,null,null,null,null,null,null,null,null,null,"",null,null,null,null,null,null,null,null,""]
["TOTAL",null,null,null,null,null,null,null,null,null,null,null,null,null,null,null,null,null,null,null,null,null,null,null,null,null,null,null,null,null,null,null,null,null,null,null,{"$f":"SUM(AK69:AN168)","v":0},null,null,null,{"$f":"SUM(AO69:AS168)","v":0}]
[]
["BENFEITORIAS"]
["IMÓVEL REF",null,null,null,null,"DESCRIÇÃO",null,null,null,null,null,null,null,null,null,null,null,null,null,null,null,null,null,null,null,null,null,null,null,null,"QTD",null,null,"PERCEN.\n%",null,null,"VALOR BEM\n (R$)",null,null,null,"VALOR %\n(R$)"]
[null,null,null,null,null,null,null,null,null,null,null,null,null,null,null,null,null,null,null,null,null,null,null,null,null,null,null,null,null,null,null,null,null,null,null,null,null,null,null,null,{"$f":"IF(OR(AE173=\"\",AH173=\"\",AK173=\"\"),\"\",AK173*AH173*AE173)","v":""},null,null,null,null,null,{"$f":"SUM(AV173:AV222)","v":1},1]
[null,null,null,null,null,null,null,null,null,null,null,null,null,null,null,null,null,null,null,null,null,null,null,null,null,null,null,null,null,null,null,null,null,null,null,null,null,null,null,null,{"$f":"IF(OR(AE174=\"\",AH174=\"\",AK174=\"\"),\"\",AK174*AH174*AE174)","v":""}]
[null,null,null,null,null,null,null,null,null,null,null,null,null,null,null,null,null,null,null,null,null,null,null,null,null,null,null,null,null,null,null,null,null,null,null,null,null,null,null,null,""]
[null,null,null,null,null,null,null,null,null,null,null,null,null,null,null,null,null,null,null,null,null,null,null,null,null,null,null,null,null,null,null,null,null,null,null,null,null,null,null,null,""]
[null,null,null,null,null,null,null,null,null,null,null,null,null,null,null,null,null,null,null,null,null,null,null,null,null,null,null,null,null,null,null,null,null,null,null,null,null,null,null,null,""]
[null,null,null,null,null,null,null,null,null,null,null,null,null,null,null,null,null,null,null,null,null,null,null,null,null,null,null,null,null,null,null,null,null,null,null,null,null,null,null,null,""]
[null,null,null,null,null,null,null,null,null,null,null,null,null,null,null,null,null,null,null,null,null,null,null,null,null,null,null,null,null,null,null,null,null,null,null,null,null,null,null,null,""]
[null,null,null,null,null,null,null,null,null,null,null,null,null,null,null,null,null,null,null,null,null,null,null,null,null,null,null,null,null,null,null,null,null,null,null,null,null,null,null,null,""]
[null,null,null,null,null,null,null,null,null,null,null,null,null,null,null,null,null,null,null,null,null,null,null,null,null,null,null,null,null,null,null,null,null,null,null,null,null,null,null,null,""]
[null,null,null,null,null,null,null,null,null,null,null,null,null,null,null,null,null,null,null,null,null,null,null,null,null,null,null,null,null,null,null,null,null,null,null,null,null,null,null,null,""]
[null,null,null,null,null,null,null,null,null,null,null,null,null,null,null,null,null,null,null,null,null,null,null,null,null,null,null,null,null,null,null,null,null,null,null,null,null,null,null,null,""]
[null,null,null,null,null,null,null,null,null,null,null,null,null,null,null,null,null,null,null,null,null,null,null,null,null,null,null,null,null,null,null,null,null,null,null,null,null,null,null,null,""]
[null,null,null,null,null,null,null,null,null,null,null,null,null,null,null,null,null,null,null,null,null,null,null,null,null,null,null,null,null,null,null,null,null,null,null,null,null,null,null,null,""]
[null,null,null,null,null,null,null,null,null,null,null,null,null,null,null,null,null,null,null,null,null,null,null,null,null,null,null,null,null,null,null,null,null,null,null,null,null,null,null,null,""]
[null,null,null,null,null,null,null,null,null,null,null,null,null,null,null,null,null,null,null,null,null,null,null,null,null,null,null,null,null,null,null,null,null,null,null,null,null,null,null,null,{"$f":"IF(OR(AE187=\"\",AH187=\"\",AK187=\"\"),\"\",AK187*AH187*AE187)","v":""}]
[null,null,null,null,null,null,null,null,null,null,null,null,null,null,null,null,null,null,null,null,null,null,null,null,null,null,null,null,null,null,null,null,null,null,null,null,null,null,null,null,""]
[null,null,null,null,null,null,null,null,null,null,null,null,null,null,null,null,null,null,null,null,null,null,null,null,null,null,null,null,null,null,null,null,null,null,null,null,null,null,null,null,""]
[null,null,null,null,null,null,null,null,null,null,null,null,null,null,null,null,null,null,null,null,null,null,null,null,null,null,null,null,null,null,null,null,null,null,null,null,null,null,null,null,""]
[null,null,null,null,null,null,null,null,null,null,null,null,null,null,null,null,null,null,null,null,null,null,null,null,null,null,null,null,null,null,null,null,null,null,null,null,null,null,null,null,""]
[null,null,null,null,null,null,null,null,null,null,null,null,null,null,null,null,null,null,null,null,null,null,null,null,null,null,null,null,null,null,null,null,null,null,null,null,null,null,null,null,""]
[null,null,null,null,null,null,null,null,null,null,null,null,null,null,null,null,null,null,null,null,null,null,null,null,null,null,null,null,null,null,null,null,null,null,null,null,null,null,null,null,""]
[null,null,null,null,null,null,null,null,null,null,null,null,null,null,null,null,null,null,null,null,null,null,null,null,null,null,null,null,null,null,null,null,null,null,null,null,null,null,null,null,""]
[null,null,null,null,null,null,null,null,null,null,null,null,null,null,null,null,null,null,null,null,null,null,null,null,null,null,null,null,null,null,null,null,null,null,null,null,null,null,null,null,""]
[null,null,null,null,null,null,null,null,null,null,null,null,null,null,null,null,null,null,null,null,null,null,null,null,null,null,null,null,null,null,null,null,null,null,null,null,null,null,null,null,""]
[null,null,null,null,null,null,null,null,null,null,null,null,null,null,null,null,null,null,null,null,null,null,null,null,null,null,null,null,null,null,null,null,null,null,null,null,null,null,null,null,""]
[null,null,null,null,null,null,null,null,null,null,null,null,null,null,null,null,null,null,null,null,null,null,null,null,null,null,null,null,null,null,null,null,null,null,null,null,null,null,null,null,""]
[null,null,null,null,null,null,null,null,null,null,null,null,null,null,null,null,null,null,null,null,null,null,null,null,null,null,null,null,null,null,null,null,null,null,null,null,null,null,null,null,""]
[null,null,null,null,null,null,null,null,null,null,null,null,null,null,null,null,null,null,null,null,null,null,null,null,null,null,null,null,null,null,null,null,null,null,null,null,null,null,null,null,""]
[null,null,null,null,null,null,null,null,null,null,null,null,null,null,null,null,null,null,null,null,null,null,null,null,null,null,null,null,null,null,null,null,null,null,null,null,null,null,null,null,""]
[null,null,null,null,null,null,null,null,null,null,null,null,null,null,null,null,null,null,null,null,null,null,null,null,null,null,null,null,null,null,null,null,null,null,null,null,null,null,null,null,{"$f":"IF(OR(AE202=\"\",AH202=\"\",AK202=\"\"),\"\",AK202*AH202*AE202)","v":""}]
[null,null,null,null,null,null,null,null,null,null,null,null,null,null,null,null,null,null,null,null,null,null,null,null,null,null,null,null,null,null,null,null,null,null,null,null,null,null,null,null,""]
[null,null,null,null,null,null,null,null,null,null,null,null,null,null,null,null,null,null,null,null,null,null,null,null,null,null,null,null,null,null,null,null,null,null,null,null,null,null,null,null,""]
[null,null,null,null,null,null,null,null,null,null,null,null,null,null,null,null,null,null,null,null,null,null,null,null,null,null,null,null,null,null,null,null,null,null,null,null,null,null,null,null,""]
[null,null,null,null,null,null,null,null,null,null,null,null,null,null,null,null,null,null,null,null,null,null,null,null,null,null,null,null,null,null,null,null,null,null,null,null,null,null,null,null,""]
[null,null,null,null,null,null,null,null,null,null,null,null,null,null,null,null,null,null,null,null,null,null,null,null,null,null,null,null,null,null,null,null,null,null,null,null,null,null,null,null,""]
[null,null,null,null,null,null,null,null,null,null,null,null,null,null,null,null,null,null,null,null,null,null,null,null,null,null,null,null,null,null,null,null,null,null,null,null,null,null,null,null,""]
[null,null,null,null,null,null,null,null,null,null,null,null,null,null,null,null,null,null,null,null,null,null,null,null,null,null,null,null,null,null,null,null,null,null,null,null,null,null,null,null,""]
[null,null,null,null,null,null,null,null,null,null,null,null,null,null,null,null,null,null,null,null,null,null,null,null,null,null,null,null,null,null,null,null,null,null,null,null,null,null,null,null,""]
[null,null,null,null,null,null,null,null,null,null,null,null,null,null,null,null,null,null,null,null,null,null,null,null,null,null,null,null,null,null,null,null,null,null,null,null,null,null,null,null,""]
[null,null,null,null,null,null,null,null,null,null,null,null,null,null,null,null,null,null,null,null,null,null,null,null,null,null,null,null,null,null,null,null,null,null,null,null,null,null,null,null,""]
[null,null,null,null,null,null,null,null,null,null,null,null,null,null,null,null,null,null,null,null,null,null,null,null,null,null,null,null,null,null,null,null,null,null,null,null,null,null,null,null,""]
[null,null,null,null,null,null,null,null,null,null,null,null,null,null,null,null,null,null,null,null,null,null,null,null,null,null,null,null,null,null,null,null,null,null,null,null,null,null,null,null,""]
[null,null,null,null,null,null,null,null,null,null,null,null,null,null,null,null,null,null,null,null,null,null,null,null,null,null,null,null,null,null,null,null,null,null,null,null,null,null,null,null,""]
[null,null,null,null,null,null,null,null,null,null,null,null,null,null,null,null,null,null,null,null,null,null,null,null,null,null,null,null,null,null,null,null,null,null,null,null,null,null,null,null,""]
[null,null,null,null,null,null,null,null,null,null,null,null,null,null,null,null,null,null,null,null,null,null,null,null,null,null,null,null,null,null,null,null,null,null,null,null,null,null,null,null,""]
[null,null,null,null,null,null,null,null,null,null,null,null,null,null,null,null,null,null,null,null,null,null,null,null,null,null,null,null,null,null,null,null,null,null,null,null,null,null,null,null,""]
[null,null,null,null,null,null,null,null,null,null,null,null,null,null,null,null,null,null,null,null,null,null,null,null,null,null,null,null,null,null,null,null,null,null,null,null,null,null,null,null,""]
[null,null,null,null,null,null,null,null,null,null,null,null,null,null,null,null,null,null,null,null,null,null,null,null,null,null,null,null,null,null,null,null,null,null,null,null,null,null,null,null,""]
[null,null,null,null,null,null,null,null,null,null,null,null,null,null,null,null,null,null,null,null,null,null,null,null,null,null,null,null,null,null,null,null,null,null,null,null,null,null,null,null,""]
[null,null,null,null,null,null,null,null,null,null,null,null,null,null,null,null,null,null,null,null,null,null,null,null,null,null,null,null,null,null,null,null,null,null,null,null,null,null,null,null,""]
["TOTAL",null,null,null,null,null,null,null,null,null,null,null,null,null,null,null,null,null,null,null,null,null,null,null,null,null,null,null,null,null,{"$f":"SUM(AE173:AG222)","v":0},null,null,null,null,null,{"$f":"SUM(AK173:AN222)","v":0},null,null,null,{"$f":"SUM(AO173:AS222)","v":0}]
[]
["BENS MÓVEIS"]
[]
[" VEÍCULOS, MÁQUINAS E EQUIPAMENTOS"]
["ORIGEM DAS PARTICIPAÇÕES"]
[]
["TIPO",null,null,null,null,null,"DESCRIÇÃO",null,null,null,null,null,null,null,null,null,null,"PARTICIPAÇÃO",null,null,null,null,null,null,null,null,null,null,null,"QTD",null,null,"PERCENT\n%",null,null,"VALOR BEM\n (R$)",null,null,null,null,"VALOR %\n(R$)"]
[null,null,null,null,null,null,null,null,null,null,null,null,null,null,null,null,null,null,null,null,null,null,null,null,null,null,null,null,null,null,null,null,null,null,null,null,null,null,null,null,{"$f":"IF(AD231=\"\",\"\",AD231*AG231*AJ231)","v":""},null,null,null,null,null,{"$f":"SUM(AV231:AV430)","v":1},1]
[null,null,null,null,null,null,null,null,null,null,null,null,null,null,null,null,null,null,null,null,null,null,null,null,null,null,null,null,null,null,null,null,null,null,null,null,null,null,null,null,{"$f":"IF(AD232=\"\",\"\",AD232*AG232*AJ232)","v":""}]
[null,null,null,null,null,null,null,null,null,null,null,null,null,null,null,null,null,null,null,null,null,null,null,null,null,null,null,null,null,null,null,null,null,null,null,null,null,null,null,null,""]
[null,null,null,null,null,null,null,null,null,null,null,null,null,null,null,null,null,null,null,null,null,null,null,null,null,null,null,null,null,null,null,null,null,null,null,null,null,null,null,null,""]
[null,null,null,null,null,null,null,null,null,null,null,null,null,null,null,null,null,null,null,null,null,null,null,null,null,null,null,null,null,null,null,null,null,null,null,null,null,null,null,null,""]
[null,null,null,null,null,null,null,null,null,null,null,null,null,null,null,null,null,null,null,null,null,null,null,null,null,null,null,null,null,null,null,null,null,null,null,null,null,null,null,null,""]
[null,null,null,null,null,null,null,null,null,null,null,null,null,null,null,null,null,null,null,null,null,null,null,null,null,null,null,null,null,null,null,null,null,null,null,null,null,null,null,null,""]
[null,null,null,null,null,null,null,null,null,null,null,null,null,null,null,null,null,null,null,null,null,null,null,null,null,null,null,null,null,null,null,null,null,null,null,null,null,null,null,null,""]
[null,null,null,null,null,null,null,null,null,null,null,null,null,null,null,null,null,null,null,null,null,null,null,null,null,null,null,null,null,null,null,null,null,null,null,null,null,null,null,null,""]
[null,null,null,null,null,null,null,null,null,null,null,null,null,null,null,null,null,null,null,null,null,null,null,null,null,null,null,null,null,null,null,null,null,null,null,null,null,null,null,null,""]
[null,null,null,null,null,null,null,null,null,null,null,null,null,null,null,null,null,null,null,null,null,null,null,null,null,null,null,null,null,null,null,null,null,null,null,null,null,null,null,null,""]
[null,null,null,null,null,null,null,null,null,null,null,null,null,null,null,null,null,null,null,null,null,null,null,null,null,null,null,null,null,null,null,null,null,null,null,null,null,null,null,null,""]
[null,null,null,null,null,null,null,null,null,null,null,null,null,null,null,null,null,null,null,null,null,null,null,null,null,null,null,null,null,null,null,null,null,null,null,null,null,null,null,null,""]
[null,null,null,null,null,null,null,null,null,null,null,null,null,null,null,null,null,null,null,null,null,null,null,null,null,null,null,null,null,null,null,null,null,null,null,null,null,null,null,null,""]
[null,null,null,null,null,null,null,null,null,null,null,null,null,null,null,null,null,null,null,null,null,null,null,null,null,null,null,null,null,null,null,null,null,null,null,null,null,null,null,null,""]
[null,null,null,null,null,null,null,null,null,null,null,null,null,null,null,null,null,null,null,null,null,null,null,null,null,null,null,null,null,null,null,null,null,null,null,null,null,null,null,null,""]
[null,null,null,null,null,null,null,null,null,null,null,null,null,null,null,null,null,null,null,null,null,null,null,null,null,null,null,null,null,null,null,null,null,null,null,null,null,null,null,null,""]
[null,null,null,null,null,null,null,null,null,null,null,null,null,null,null,null,null,null,null,null,null,null,null,null,null,null,null,null,null,null,null,null,null,null,null,null,null,null,null,null,""]
[null,null,null,null,null,null,null,null,null,null,null,null,null,null,null,null,null,null,null,null,null,null,null,null,null,null,null,null,null,null,null,null,null,null,null,null,null,null,null,null,""]
[null,null,null,null,null,null,null,null,null,null,null,null,null,null,null,null,null,null,null,null,null,null,null,null,null,null,null,null,null,null,null,null,null,null,null,null,null,null,null,null,""]
[null,null,null,null,null,null,null,null,null,null,null,null,null,null,null,null,null,null,null,null,null,null,null,null,null,null,null,null,null,null,null,null,null,null,null,null,null,null,null,null,""]
[null,null,null,null,null,null,null,null,null,null,null,null,null,null,null,null,null,null,null,null,null,null,null,null,null,null,null,null,null,null,null,null,null,null,null,null,null,null,null,null,""]
[null,null,null,null,null,null,null,null,null,null,null,null,null,null,null,null,null,null,null,null,null,null,null,null,null,null,null,null,null,null,null,null,null,null,null,null,null,null,null,null,""]
[null,null,null,null,null,null,null,null,null,null,null,null,null,null,null,null,null,null,null,null,null,null,null,null,null,null,null,null,null,null,null,null,null,null,null,null,null,null,null,null,""]
[null,null,null,null,null,null,null,null,null,null,null,null,null,null,null,null,null,null,null,null,null,null,null,null,null,null,null,null,null,null,null,null,null,null,null,null,null,null,null,null,""]
[null,null,null,null,null,null,null,null,null,null,null,null,null,null,null,null,null,null,null,null,null,null,null,null,null,null,null,null,null,null,null,null,null,null,null,null,null,null,null,null,""]
[null,null,null,null,null,null,null,null,null,null,null,null,null,null,null,null,null,null,null,null,null,null,null,null,null,null,null,null,null,null,null,null,null,null,null,null,null,null,null,null,""]
[null,null,null,null,null,null,null,null,null,null,null,null,null,null,null,null,null,null,null,null,null,null,null,null,null,null,null,null,null,null,null,null,null,null,null,null,null,null,null,null,""]
[null,null,null,null,null,null,null,null,null,null,null,null,null,null,null,null,null,null,null,null,null,null,null,null,null,null,null,null,null,null,null,null,null,null,null,null,null,null,null,null,""]
[null,null,null,null,null,null,null,null,null,null,null,null,null,null,null,null,null,null,null,null,null,null,null,null,null,null,null,null,null,null,null,null,null,null,null,null,null,null,null,null,""]
[null,null,null,null,null,null,null,null,null,null,null,null,null,null,null,null,null,null,null,null,null,null,null,null,null,null,null,null,null,null,null,null,null,null,null,null,null,null,null,null,""]
[null,null,null,null,null,null,null,null,null,null,null,null,null,null,null,null,null,null,null,null,null,null,null,null,null,null,null,null,null,null,null,null,null,null,null,null,null,null,null,null,""]
[null,null,null,null,null,null,null,null,null,null,null,null,null,null,null,null,null,null,null,null,null,null,null,null,null,null,null,null,null,null,null,null,null,null,null,null,null,null,null,null,""]
[null,null,null,null,null,null,null,null,null,null,null,null,null,null,null,null,null,null,null,null,null,null,null,null,null,null,null,null,null,null,null,null,null,null,null,null,null,null,null,null,""]
[null,null,null,null,null,null,null,null,null,null,null,null,null,null,null,null,null,null,null,null,null,null,null,null,null,null,null,null,null,null,null,null,null,null,null,null,null,null,null,null,""]
[null,null,null,null,null,null,null,null,null,null,null,null,null,null,null,null,null,null,null,null,null,null,null,null,null,null,null,null,null,null,null,null,null,null,null,null,null,null,null,null,""]
[null,null,null,null,null,null,null,null,null,null,null,null,null,null,null,null,null,null,null,null,null,null,null,null,null,null,null,null,null,null,null,null,null,null,null,null,null,null,null,null,""]
[null,null,null,null,null,null,null,null,null,null,null,null,null,null,null,null,null,null,null,null,null,null,null,null,null,null,null,null,null,null,null,null,null,null,null,null,null,null,null,null,""]
[null,null,null,null,null,null,null,null,null,null,null,null,null,null,null,null,null,null,null,null,null,null,null,null,null,null,null,null,null,null,null,null,null,null,null,null,null,null,null,null,""]
[null,null,null,null,null,null,null,null,null,null,null,null,null,null,null,null,null,null,null,null,null,null,null,null,null,null,null,null,null,null,null,null,null,null,null,null,null,null,null,null,""]
[null,null,null,null,null,null,null,null,null,null,null,null,null,null,null,null,null,null,null,null,null,null,null,null,null,null,null,null,null,null,null,null,null,null,null,null,null,null,null,null,""]
[null,null,null,null,null,null,null,null,null,null,null,null,null,null,null,null,null,null,null,null,null,null,null,null,null,null,null,null,null,null,null,null,null,null,null,null,null,null,null,null,""]
[null,null,null,null,null,null,null,null,null,null,null,null,null,null,null,null,null,null,null,null,null,null,null,null,null,null,null,null,null,null,null,null,null,null,null,null,null,null,null,null,""]
[null,null,null,null,null,null,null,null,null,null,null,null,null,null,null,null,null,null,null,null,null,null,null,null,null,null,null,null,null,null,null,null,null,null,null,null,null,null,null,null,""]
[null,null,null,null,null,null,null,null,null,null,null,null,null,null,null,null,null,null,null,null,null,null,null,null,null,null,null,null,null,null,null,null,null,null,null,null,null,null,null,null,""]
[null,null,null,null,null,null,null,null,null,null,null,null,null,null,null,null,null,null,null,null,null,null,null,null,null,null,null,null,null,null,null,null,null,null,null,null,null,null,null,null,""]
[null,null,null,null,null,null,null,null,null,null,null,null,null,null,null,null,null,null,null,null,null,null,null,null,null,null,null,null,null,null,null,null,null,null,null,null,null,null,null,null,""]
[null,null,null,null,null,null,null,null,null,null,null,null,null,null,null,null,null,null,null,null,null,null,null,null,null,null,null,null,null,null,null,null,null,null,null,null,null,null,null,null,""]
[null,null,null,null,null,null,null,null,null,null,null,null,null,null,null,null,null,null,null,null,null,null,null,null,null,null,null,null,null,null,null,null,null,null,null,null,null,null,null,null,""]
[null,null,null,null,null,null,null,null,null,null,null,null,null,null,null,null,null,null,null,null,null,null,null,null,null,null,null,null,null,null,null,null,null,null,null,null,null,null,null,null,""]
[null,null,null,null,null,null,null,null,null,null,null,null,null,null,null,null,null,null,null,null,null,null,null,null,null,null,null,null,null,null,null,null,null,null,null,null,null,null,null,null,""]
[null,null,null,null,null,null,null,null,null,null,null,null,null,null,null,null,null,null,null,null,null,null,null,null,null,null,null,null,null,null,null,null,null,null,null,null,null,null,null,null,""]
[null,null,null,null,null,null,null,null,null,null,null,null,null,null,null,null,null,null,null,null,null,null,null,null,null,null,null,null,null,null,null,null,null,null,null,null,null,null,null,null,""]
[null,null,null,null,null,null,null,null,null,null,null,null,null,null,null,null,null,null,null,null,null,null,null,null,null,null,null,null,null,null,null,null,null,null,null,null,null,null,null,null,""]
[null,null,null,null,null,null,null,null,null,null,null,null,null,null,null,null,null,null,null,null,null,null,null,null,null,null,null,null,null,null,null,null,null,null,null,null,null,null,null,null,""]
[null,null,null,null,null,null,null,null,null,null,null,null,null,null,null,null,null,null,null,null,null,null,null,null,null,null,null,null,null,null,null,null,null,null,null,null,null,null,null,null,""]
[null,null,null,null,null,null,null,null,null,null,null,null,null,null,null,null,null,null,null,null,null,null,null,null,null,null,null,null,null,null,null,null,null,null,null,null,null,null,null,null,""]
[null,null,null,null,null,null,null,null,null,null,null,null,null,null,null,null,null,null,null,null,null,null,null,null,null,null,null,null,null,null,null,null,null,null,null,null,null,null,null,null,""]
[null,null,null,null,null,null,null,null,null,null,null,null,null,null,null,null,null,null,null,null,null,null,null,null,null,null,null,null,null,null,null,null,null,null,null,null,null,null,null,null,""]
[null,null,null,null,null,null,null,null,null,null,null,null,null,null,null,null,null,null,null,null,null,null,null,null,null,null,null,null,null,null,null,null,null,null,null,null,null,null,null,null,""]
[null,null,null,null,null,null,null,null,null,null,null,null,null,null,null,null,null,null,null,null,null,null,null,null,null,null,null,null,null,null,null,null,null,null,null,null,null,null,null,null,""]
[null,null,null,null,null,null,null,null,null,null,null,null,null,null,null,null,null,null,null,null,null,null,null,null,null,null,null,null,null,null,null,null,null,null,null,null,null,null,null,null,""]
[null,null,null,null,null,null,null,null,null,null,null,null,null,null,null,null,null,null,null,null,null,null,null,null,null,null,null,null,null,null,null,null,null,null,null,null,null,null,null,null,""]
[null,null,null,null,null,null,null,null,null,null,null,null,null,null,null,null,null,null,null,null,null,null,null,null,null,null,null,null,null,null,null,null,null,null,null,null,null,null,null,null,""]
[null,null,null,null,null,null,null,null,null,null,null,null,null,null,null,null,null,null,null,null,null,null,null,null,null,null,null,null,null,null,null,null,null,null,null,null,null,null,null,null,""]
[null,null,null,null,null,null,null,null,null,null,null,null,null,null,null,null,null,null,null,null,null,null,null,null,null,null,null,null,null,null,null,null,null,null,null,null,null,null,null,null,""]
[null,null,null,null,null,null,null,null,null,null,null,null,null,null,null,null,null,null,null,null,null,null,null,null,null,null,null,null,null,null,null,null,null,null,null,null,null,null,null,null,""]
[null,null,null,null,null,null,null,null,null,null,null,null,null,null,null,null,null,null,null,null,null,null,null,null,null,null,null,null,null,null,null,null,null,null,null,null,null,null,null,null,""]
[null,null,null,null,null,null,null,null,null,null,null,null,null,null,null,null,null,null,null,null,null,null,null,null,null,null,null,null,null,null,null,null,null,null,null,null,null,null,null,null,""]
[null,null,null,null,null,null,null,null,null,null,null,null,null,null,null,null,null,null,null,null,null,null,null,null,null,null,null,null,null,null,null,null,null,null,null,null,null,null,null,null,""]
[null,null,null,null,null,null,null,null,null,null,null,null,null,null,null,null,null,null,null,null,null,null,null,null,null,null,null,null,null,null,null,null,null,null,null,null,null,null,null,null,""]
[null,null,null,null,null,null,null,null,null,null,null,null,null,null,null,null,null,null,null,null,null,null,null,null,null,null,null,null,null,null,null,null,null,null,null,null,null,null,null,null,""]
[null,null,null,null,null,null,null,null,null,null,null,null,null,null,null,null,null,null,null,null,null,null,null,null,null,null,null,null,null,null,null,null,null,null,null,null,null,null,null,null,""]
[null,null,null,null,null,null,null,null,null,null,null,null,null,null,null,null,null,null,null,null,null,null,null,null,null,null,null,null,null,null,null,null,null,null,null,null,null,null,null,null,""]
[null,null,null,null,null,null,null,null,null,null,null,null,null,null,null,null,null,null,null,null,null,null,null,null,null,null,null,null,null,null,null,null,null,null,null,null,null,null,null,null,""]
[null,null,null,null,null,null,null,null,null,null,null,null,null,null,null,null,null,null,null,null,null,null,null,null,null,null,null,null,null,null,null,null,null,null,null,null,null,null,null,null,""]
[null,null,null,null,null,null,null,null,null,null,null,null,null,null,null,null,null,null,null,null,null,null,null,null,null,null,null,null,null,null,null,null,null,null,null,null,null,null,null,null,""]
[null,null,null,null,null,null,null,null,null,null,null,null,null,null,null,null,null,null,null,null,null,null,null,null,null,null,null,null,null,null,null,null,null,null,null,null,null,null,null,null,""]
[null,null,null,null,null,null,null,null,null,null,null,null,null,null,null,null,null,null,null,null,null,null,null,null,null,null,null,null,null,null,null,null,null,null,null,null,null,null,null,null,""]
[null,null,null,null,null,null,null,null,null,null,null,null,null,null,null,null,null,null,null,null,null,null,null,null,null,null,null,null,null,null,null,null,null,null,null,null,null,null,null,null,""]
[null,null,null,null,null,null,null,null,null,null,null,null,null,null,null,null,null,null,null,null,null,null,null,null,null,null,null,null,null,null,null,null,null,null,null,null,null,null,null,null,""]
[null,null,null,null,null,null,null,null,null,null,null,null,null,null,null,null,null,null,null,null,null,null,null,null,null,null,null,null,null,null,null,null,null,null,null,null,null,null,null,null,""]
[null,null,null,null,null,null,null,null,null,null,null,null,null,null,null,null,null,null,null,null,null,null,null,null,null,null,null,null,null,null,null,null,null,null,null,null,null,null,null,null,""]
[null,null,null,null,null,null,null,null,null,null,null,null,null,null,null,null,null,null,null,null,null,null,null,null,null,null,null,null,null,null,null,null,null,null,null,null,null,null,null,null,""]
[null,null,null,null,null,null,null,null,null,null,null,null,null,null,null,null,null,null,null,null,null,null,null,null,null,null,null,null,null,null,null,null,null,null,null,null,null,null,null,null,""]
[null,null,null,null,null,null,null,null,null,null,null,null,null,null,null,null,null,null,null,null,null,null,null,null,null,null,null,null,null,null,null,null,null,null,null,null,null,null,null,null,""]
[null,null,null,null,null,null,null,null,null,null,null,null,null,null,null,null,null,null,null,null,null,null,null,null,null,null,null,null,null,null,null,null,null,null,null,null,null,null,null,null,""]
[null,null,null,null,null,null,null,null,null,null,null,null,null,null,null,null,null,null,null,null,null,null,null,null,null,null,null,null,null,null,null,null,null,null,null,null,null,null,null,null,""]
[null,null,null,null,null,null,null,null,null,null,null,null,null,null,null,null,null,null,null,null,null,null,null,null,null,null,null,null,null,null,null,null,null,null,null,null,null,null,null,null,""]
[null,null,null,null,null,null,null,null,null,null,null,null,null,null,null,null,null,null,null,null,null,null,null,null,null,null,null,null,null,null,null,null,null,null,null,null,null,null,null,null,""]
[null,null,null,null,null,null,null,null,null,null,null,null,null,null,null,null,null,null,null,null,null,null,null,null,null,null,null,null,null,null,null,null,null,null,null,null,null,null,null,null,""]
[null,null,null,null,null,null,null,null,null,null,null,null,null,null,null,null,null,null,null,null,null,null,null,null,null,null,null,null,null,null,null,null,null,null,null,null,null,null,null,null,""]
[null,null,null,null,null,null,null,null,null,null,null,null,null,null,null,null,null,null,null,null,null,null,null,null,null,null,null,null,null,null,null,null,null,null,null,null,null,null,null,null,""]
[null,null,null,null,null,null,null,null,null,null,null,null,null,null,null,null,null,null,null,null,null,null,null,null,null,null,null,null,null,null,null,null,null,null,null,null,null,null,null,null,""]
[null,null,null,null,null,null,null,null,null,null,null,null,null,null,null,null,null,null,null,null,null,null,null,null,null,null,null,null,null,null,null,null,null,null,null,null,null,null,null,null,""]
[null,null,null,null,null,null,null,null,null,null,null,null,null,null,null,null,null,null,null,null,null,null,null,null,null,null,null,null,null,null,null,null,null,null,null,null,null,null,null,null,""]
[null,null,null,null,null,null,null,null,null,null,null,null,null,null,null,null,null,null,null,null,null,null,null,null,null,null,null,null,null,null,null,null,null,null,null,null,null,null,null,null,""]
[null,null,null,null,null,null,null,null,null,null,null,null,null,null,null,null,null,null,null,null,null,null,null,null,null,null,null,null,null,null,null,null,null,null,null,null,null,null,null,null,""]
[null,null,null,null,null,null,null,null,null,null,null,null,null,null,null,null,null,null,null,null,null,null,null,null,null,null,null,null,null,null,null,null,null,null,null,null,null,null,null,null,""]
[null,null,null,null,null,null,null,null,null,null,null,null,null,null,null,null,null,null,null,null,null,null,null,null,null,null,null,null,null,null,null,null,null,null,null,null,null,null,null,null,""]
[null,null,null,null,null,null,null,null,null,null,null,null,null,null,null,null,null,null,null,null,null,null,null,null,null,null,null,null,null,null,null,null,null,null,null,null,null,null,null,null,{"$f":"IF(AD331=\"\",\"\",AD331*AG331*AJ331)","v":""}]
[null,null,null,null,null,null,null,null,null,null,null,null,null,null,null,null,null,null,null,null,null,null,null,null,null,null,null,null,null,null,null,null,null,null,null,null,null,null,null,null,{"$f":"IF(AD332=\"\",\"\",AD332*AG332*AJ332)","v":""}]
[null,null,null,null,null,null,null,null,null,null,null,null,null,null,null,null,null,null,null,null,null,null,null,null,null,null,null,null,null,null,null,null,null,null,null,null,null,null,null,null,""]
[null,null,null,null,null,null,null,null,null,null,null,null,null,null,null,null,null,null,null,null,null,null,null,null,null,null,null,null,null,null,null,null,null,null,null,null,null,null,null,null,""]
[null,null,null,null,null,null,null,null,null,null,null,null,null,null,null,null,null,null,null,null,null,null,null,null,null,null,null,null,null,null,null,null,null,null,null,null,null,null,null,null,""]
[null,null,null,null,null,null,null,null,null,null,null,null,null,null,null,null,null,null,null,null,null,null,null,null,null,null,null,null,null,null,null,null,null,null,null,null,null,null,null,null,""]
[null,null,null,null,null,null,null,null,null,null,null,null,null,null,null,null,null,null,null,null,null,null,null,null,null,null,null,null,null,null,null,null,null,null,null,null,null,null,null,null,""]
[null,null,null,null,null,null,null,null,null,null,null,null,null,null,null,null,null,null,null,null,null,null,null,null,null,null,null,null,null,null,null,null,null,null,null,null,null,null,null,null,""]
[null,null,null,null,null,null,null,null,null,null,null,null,null,null,null,null,null,null,null,null,null,null,null,null,null,null,null,null,null,null,null,null,null,null,null,null,null,null,null,null,{"$f":"IF(AD339=\"\",\"\",AD339*AG339*AJ339)","v":""}]
[null,null,null,null,null,null,null,null,null,null,null,null,null,null,null,null,null,null,null,null,null,null,null,null,null,null,null,null,null,null,null,null,null,null,null,null,null,null,null,null,""]
[null,null,null,null,null,null,null,null,null,null,null,null,null,null,null,null,null,null,null,null,null,null,null,null,null,null,null,null,null,null,null,null,null,null,null,null,null,null,null,null,""]
[null,null,null,null,null,null,null,null,null,null,null,null,null,null,null,null,null,null,null,null,null,null,null,null,null,null,null,null,null,null,null,null,null,null,null,null,null,null,null,null,""]
[null,null,null,null,null,null,null,null,null,null,null,null,null,null,null,null,null,null,null,null,null,null,null,null,null,null,null,null,null,null,null,null,null,null,null,null,null,null,null,null,""]
[null,null,null,null,null,null,null,null,null,null,null,null,null,null,null,null,null,null,null,null,null,null,null,null,null,null,null,null,null,null,null,null,null,null,null,null,null,null,null,null,""]
[null,null,null,null,null,null,null,null,null,null,null,null,null,null,null,null,null,null,null,null,null,null,null,null,null,null,null,null,null,null,null,null,null,null,null,null,null,null,null,null,""]
[null,null,null,null,null,null,null,null,null,null,null,null,null,null,null,null,null,null,null,null,null,null,null,null,null,null,null,null,null,null,null,null,null,null,null,null,null,null,null,null,""]
[null,null,null,null,null,null,null,null,null,null,null,null,null,null,null,null,null,null,null,null,null,null,null,null,null,null,null,null,null,null,null,null,null,null,null,null,null,null,null,null,""]
[null,null,null,null,null,null,null,null,null,null,null,null,null,null,null,null,null,null,null,null,null,null,null,null,null,null,null,null,null,null,null,null,null,null,null,null,null,null,null,null,""]
[null,null,null,null,null,null,null,null,null,null,null,null,null,null,null,null,null,null,null,null,null,null,null,null,null,null,null,null,null,null,null,null,null,null,null,null,null,null,null,null,""]
[null,null,null,null,null,null,null,null,null,null,null,null,null,null,null,null,null,null,null,null,null,null,null,null,null,null,null,null,null,null,null,null,null,null,null,null,null,null,null,null,""]
[null,null,null,null,null,null,null,null,null,null,null,null,null,null,null,null,null,null,null,null,null,null,null,null,null,null,null,null,null,null,null,null,null,null,null,null,null,null,null,null,""]
[null,null,null,null,null,null,null,null,null,null,null,null,null,null,null,null,null,null,null,null,null,null,null,null,null,null,null,null,null,null,null,null,null,null,null,null,null,null,null,null,""]
[null,null,null,null,null,null,null,null,null,null,null,null,null,null,null,null,null,null,null,null,null,null,null,null,null,null,null,null,null,null,null,null,null,null,null,null,null,null,null,null,""]
[null,null,null,null,null,null,null,null,null,null,null,null,null,null,null,null,null,null,null,null,null,null,null,null,null,null,null,null,null,null,null,null,null,null,null,null,null,null,null,null,""]
[null,null,null,null,null,null,null,null,null,null,null,null,null,null,null,null,null,null,null,null,null,null,null,null,null,null,null,null,null,null,null,null,null,null,null,null,null,null,null,null,""]
[null,null,null,null,null,null,null,null,null,null,null,null,null,null,null,null,null,null,null,null,null,null,null,null,null,null,null,null,null,null,null,null,null,null,null,null,null,null,null,null,""]
[null,null,null,null,null,null,null,null,null,null,null,null,null,null,null,null,null,null,null,null,null,null,null,null,null,null,null,null,null,null,null,null,null,null,null,null,null,null,null,null,""]
[null,null,null,null,null,null,null,null,null,null,null,null,null,null,null,null,null,null,null,null,null,null,null,null,null,null,null,null,null,null,null,null,null,null,null,null,null,null,null,null,""]
[null,null,null,null,null,null,null,null,null,null,null,null,null,null,null,null,null,null,null,null,null,null,null,null,null,null,null,null,null,null,null,null,null,null,null,null,null,null,null,null,""]
[null,null,null,null,null,null,null,null,null,null,null,null,null,null,null,null,null,null,null,null,null,null,null,null,null,null,null,null,null,null,null,null,null,null,null,null,null,null,null,null,""]
[null,null,null,null,null,null,null,null,null,null,null,null,null,null,null,null,null,null,null,null,null,null,null,null,null,null,null,null,null,null,null,null,null,null,null,null,null,null,null,null,""]
[null,null,null,null,null,null,null,null,null,null,null,null,null,null,null,null,null,null,null,null,null,null,null,null,null,null,null,null,null,null,null,null,null,null,null,null,null,null,null,null,""]
[null,null,null,null,null,null,null,null,null,null,null,null,null,null,null,null,null,null,null,null,null,null,null,null,null,null,null,null,null,null,null,null,null,null,null,null,null,null,null,null,""]
[null,null,null,null,null,null,null,null,null,null,null,null,null,null,null,null,null,null,null,null,null,null,null,null,null,null,null,null,null,null,null,null,null,null,null,null,null,null,null,null,""]
[null,null,null,null,null,null,null,null,null,null,null,null,null,null,null,null,null,null,null,null,null,null,null,null,null,null,null,null,null,null,null,null,null,null,null,null,null,null,null,null,""]
[null,null,null,null,null,null,null,null,null,null,null,null,null,null,null,null,null,null,null,null,null,null,null,null,null,null,null,null,null,null,null,null,null,null,null,null,null,null,null,null,""]
[null,null,null,null,null,null,null,null,null,null,null,null,null,null,null,null,null,null,null,null,null,null,null,null,null,null,null,null,null,null,null,null,null,null,null,null,null,null,null,null,""]
[null,null,null,null,null,null,null,null,null,null,null,null,null,null,null,null,null,null,null,null,null,null,null,null,null,null,null,null,null,null,null,null,null,null,null,null,null,null,null,null,""]
[null,null,null,null,null,null,null,null,null,null,null,null,null,null,null,null,null,null,null,null,null,null,null,null,null,null,null,null,null,null,null,null,null,null,null,null,null,null,null,null,""]
[null,null,null,null,null,null,null,null,null,null,null,null,null,null,null,null,null,null,null,null,null,null,null,null,null,null,null,null,null,null,null,null,null,null,null,null,null,null,null,null,""]
[null,null,null,null,null,null,null,null,null,null,null,null,null,null,null,null,null,null,null,null,null,null,null,null,null,null,null,null,null,null,null,null,null,null,null,null,null,null,null,null,""]
[null,null,null,null,null,null,null,null,null,null,null,null,null,null,null,null,null,null,null,null,null,null,null,null,null,null,null,null,null,null,null,null,null,null,null,null,null,null,null,null,""]
[null,null,null,null,null,null,null,null,null,null,null,null,null,null,null,null,null,null,null,null,null,null,null,null,null,null,null,null,null,null,null,null,null,null,null,null,null,null,null,null,""]
[null,null,null,null,null,null,null,null,null,null,null,null,null,null,null,null,null,null,null,null,null,null,null,null,null,null,null,null,null,null,null,null,null,null,null,null,null,null,null,null,""]
[null,null,null,null,null,null,null,null,null,null,null,null,null,null,null,null,null,null,null,null,null,null,null,null,null,null,null,null,null,null,null,null,null,null,null,null,null,null,null,null,""]
[null,null,null,null,null,null,null,null,null,null,null,null,null,null,null,null,null,null,null,null,null,null,null,null,null,null,null,null,null,null,null,null,null,null,null,null,null,null,null,null,""]
[null,null,null,null,null,null,null,null,null,null,null,null,null,null,null,null,null,null,null,null,null,null,null,null,null,null,null,null,null,null,null,null,null,null,null,null,null,null,null,null,""]
[null,null,null,null,null,null,null,null,null,null,null,null,null,null,null,null,null,null,null,null,null,null,null,null,null,null,null,null,null,null,null,null,null,null,null,null,null,null,null,null,""]
[null,null,null,null,null,null,null,null,null,null,null,null,null,null,null,null,null,null,null,null,null,null,null,null,null,null,null,null,null,null,null,null,null,null,null,null,null,null,null,null,""]
[null,null,null,null,null,null,null,null,null,null,null,null,null,null,null,null,null,null,null,null,null,null,null,null,null,null,null,null,null,null,null,null,null,null,null,null,null,null,null,null,{"$f":"IF(AD380=\"\",\"\",AD380*AG380*AJ380)","v":""}]
[null,null,null,null,null,null,null,null,null,null,null,null,null,null,null,null,null,null,null,null,null,null,null,null,null,null,null,null,null,null,null,null,null,null,null,null,null,null,null,null,""]
[null,null,null,null,null,null,null,null,null,null,null,null,null,null,null,null,null,null,null,null,null,null,null,null,null,null,null,null,null,null,null,null,null,null,null,null,null,null,null,null,""]
[null,null,null,null,null,null,null,null,null,null,null,null,null,null,null,null,null,null,null,null,null,null,null,null,null,null,null,null,null,null,null,null,null,null,null,null,null,null,null,null,""]
[null,null,null,null,null,null,null,null,null,null,null,null,null,null,null,null,null,null,null,null,null,null,null,null,null,null,null,null,null,null,null,null,null,null,null,null,null,null,null,null,""]
[null,null,null,null,null,null,null,null,null,null,null,null,null,null,null,null,null,null,null,null,null,null,null,null,null,null,null,null,null,null,null,null,null,null,null,null,null,null,null,null,""]
[null,null,null,null,null,null,null,null,null,null,null,null,null,null,null,null,null,null,null,null,null,null,null,null,null,null,null,null,null,null,null,null,null,null,null,null,null,null,null,null,""]
[null,null,null,null,null,null,null,null,null,null,null,null,null,null,null,null,null,null,null,null,null,null,null,null,null,null,null,null,null,null,null,null,null,null,null,null,null,null,null,null,""]
[null,null,null,null,null,null,null,null,null,null,null,null,null,null,null,null,null,null,null,null,null,null,null,null,null,null,null,null,null,null,null,null,null,null,null,null,null,null,null,null,""]
[null,null,null,null,null,null,null,null,null,null,null,null,null,null,null,null,null,null,null,null,null,null,null,null,null,null,null,null,null,null,null,null,null,null,null,null,null,null,null,null,""]
[null,null,null,null,null,null,null,null,null,null,null,null,null,null,null,null,null,null,null,null,null,null,null,null,null,null,null,null,null,null,null,null,null,null,null,null,null,null,null,null,""]
[null,null,null,null,null,null,null,null,null,null,null,null,null,null,null,null,null,null,null,null,null,null,null,null,null,null,null,null,null,null,null,null,null,null,null,null,null,null,null,null,""]
[null,null,null,null,null,null,null,null,null,null,null,null,null,null,null,null,null,null,null,null,null,null,null,null,null,null,null,null,null,null,null,null,null,null,null,null,null,null,null,null,""]
[null,null,null,null,null,null,null,null,null,null,null,null,null,null,null,null,null,null,null,null,null,null,null,null,null,null,null,null,null,null,null,null,null,null,null,null,null,null,null,null,""]
[null,null,null,null,null,null,null,null,null,null,null,null,null,null,null,null,null,null,null,null,null,null,null,null,null,null,null,null,null,null,null,null,null,null,null,null,null,null,null,null,""]
[null,null,null,null,null,null,null,null,null,null,null,null,null,null,null,null,null,null,null,null,null,null,null,null,null,null,null,null,null,null,null,null,null,null,null,null,null,null,null,null,""]
[null,null,null,null,null,null,null,null,null,null,null,null,null,null,null,null,null,null,null,null,null,null,null,null,null,null,null,null,null,null,null,null,null,null,null,null,null,null,null,null,""]
[null,null,null,null,null,null,null,null,null,null,null,null,null,null,null,null,null,null,null,null,null,null,null,null,null,null,null,null,null,null,null,null,null,null,null,null,null,null,null,null,""]
[null,null,null,null,null,null,null,null,null,null,null,null,null,null,null,null,null,null,null,null,null,null,null,null,null,null,null,null,null,null,null,null,null,null,null,null,null,null,null,null,""]
[null,null,null,null,null,null,null,null,null,null,null,null,null,null,null,null,null,null,null,null,null,null,null,null,null,null,null,null,null,null,null,null,null,null,null,null,null,null,null,null,""]
[null,null,null,null,null,null,null,null,null,null,null,null,null,null,null,null,null,null,null,null,null,null,null,null,null,null,null,null,null,null,null,null,null,null,null,null,null,null,null,null,""]
[null,null,null,null,null,null,null,null,null,null,null,null,null,null,null,null,null,null,null,null,null,null,null,null,null,null,null,null,null,null,null,null,null,null,null,null,null,null,null,null,""]
[null,null,null,null,null,null,null,null,null,null,null,null,null,null,null,null,null,null,null,null,null,null,null,null,null,null,null,null,null,null,null,null,null,null,null,null,null,null,null,null,""]
[null,null,null,null,null,null,null,null,null,null,null,null,null,null,null,null,null,null,null,null,null,null,null,null,null,null,null,null,null,null,null,null,null,null,null,null,null,null,null,null,""]
[null,null,null,null,null,null,null,null,null,null,null,null,null,null,null,null,null,null,null,null,null,null,null,null,null,null,null,null,null,null,null,null,null,null,null,null,null,null,null,null,""]
[null,null,null,null,null,null,null,null,null,null,null,null,null,null,null,null,null,null,null,null,null,null,null,null,null,null,null,null,null,null,null,null,null,null,null,null,null,null,null,null,""]
[null,null,null,null,null,null,null,null,null,null,null,null,null,null,null,null,null,null,null,null,null,null,null,null,null,null,null,null,null,null,null,null,null,null,null,null,null,null,null,null,""]
[null,null,null,null,null,null,null,null,null,null,null,null,null,null,null,null,null,null,null,null,null,null,null,null,null,null,null,null,null,null,null,null,null,null,null,null,null,null,null,null,""]
[null,null,null,null,null,null,null,null,null,null,null,null,null,null,null,null,null,null,null,null,null,null,null,null,null,null,null,null,null,null,null,null,null,null,null,null,null,null,null,null,""]
[null,null,null,null,null,null,null,null,null,null,null,null,null,null,null,null,null,null,null,null,null,null,null,null,null,null,null,null,null,null,null,null,null,null,null,null,null,null,null,null,""]
[null,null,null,null,null,null,null,null,null,null,null,null,null,null,null,null,null,null,null,null,null,null,null,null,null,null,null,null,null,null,null,null,null,null,null,null,null,null,null,null,""]
[null,null,null,null,null,null,null,null,null,null,null,null,null,null,null,null,null,null,null,null,null,null,null,null,null,null,null,null,null,null,null,null,null,null,null,null,null,null,null,null,""]
[null,null,null,null,null,null,null,null,null,null,null,null,null,null,null,null,null,null,null,null,null,null,null,null,null,null,null,null,null,null,null,null,null,null,null,null,null,null,null,null,""]
[null,null,null,null,null,null,null,null,null,null,null,null,null,null,null,null,null,null,null,null,null,null,null,null,null,null,null,null,null,null,null,null,null,null,null,null,null,null,null,null,""]
[null,null,null,null,null,null,null,null,null,null,null,null,null,null,null,null,null,null,null,null,null,null,null,null,null,null,null,null,null,null,null,null,null,null,null,null,null,null,null,null,""]
[null,null,null,null,null,null,null,null,null,null,null,null,null,null,null,null,null,null,null,null,null,null,null,null,null,null,null,null,null,null,null,null,null,null,null,null,null,null,null,null,""]
[null,null,null,null,null,null,null,null,null,null,null,null,null,null,null,null,null,null,null,null,null,null,null,null,null,null,null,null,null,null,null,null,null,null,null,null,null,null,null,null,""]
[null,null,null,null,null,null,null,null,null,null,null,null,null,null,null,null,null,null,null,null,null,null,null,null,null,null,null,null,null,null,null,null,null,null,null,null,null,null,null,null,""]
[null,null,null,null,null,null,null,null,null,null,null,null,null,null,null,null,null,null,null,null,null,null,null,null,null,null,null,null,null,null,null,null,null,null,null,null,null,null,null,null,""]
[null,null,null,null,null,null,null,null,null,null,null,null,null,null,null,null,null,null,null,null,null,null,null,null,null,null,null,null,null,null,null,null,null,null,null,null,null,null,null,null,{"$f":"IF(AD419=\"\",\"\",AD419*AG419*AJ419)","v":""}]
[null,null,null,null,null,null,null,null,null,null,null,null,null,null,null,null,null,null,null,null,null,null,null,null,null,null,null,null,null,null,null,null,null,null,null,null,null,null,null,null,""]
[null,null,null,null,null,null,null,null,null,null,null,null,null,null,null,null,null,null,null,null,null,null,null,null,null,null,null,null,null,null,null,null,null,null,null,null,null,null,null,null,""]
[null,null,null,null,null,null,null,null,null,null,null,null,null,null,null,null,null,null,null,null,null,null,null,null,null,null,null,null,null,null,null,null,null,null,null,null,null,null,null,null,""]
[null,null,null,null,null,null,null,null,null,null,null,null,null,null,null,null,null,null,null,null,null,null,null,null,null,null,null,null,null,null,null,null,null,null,null,null,null,null,null,null,""]
[null,null,null,null,null,null,null,null,null,null,null,null,null,null,null,null,null,null,null,null,null,null,null,null,null,null,null,null,null,null,null,null,null,null,null,null,null,null,null,null,""]
[null,null,null,null,null,null,null,null,null,null,null,null,null,null,null,null,null,null,null,null,null,null,null,null,null,null,null,null,null,null,null,null,null,null,null,null,null,null,null,null,""]
[null,null,null,null,null,null,null,null,null,null,null,null,null,null,null,null,null,null,null,null,null,null,null,null,null,null,null,null,null,null,null,null,null,null,null,null,null,null,null,null,""]
[null,null,null,null,null,null,null,null,null,null,null,null,null,null,null,null,null,null,null,null,null,null,null,null,null,null,null,null,null,null,null,null,null,null,null,null,null,null,null,null,""]
[null,null,null,null,null,null,null,null,null,null,null,null,null,null,null,null,null,null,null,null,null,null,null,null,null,null,null,null,null,null,null,null,null,null,null,null,null,null,null,null,""]
[null,null,null,null,null,null,null,null,null,null,null,null,null,null,null,null,null,null,null,null,null,null,null,null,null,null,null,null,null,null,null,null,null,null,null,null,null,null,null,null,""]
[null,null,null,null,null,null,null,null,null,null,null,null,null,null,null,null,null,null,null,null,null,null,null,null,null,null,null,null,null,null,null,null,null,null,null,null,null,null,null,null,""]
["TOTAL",null,null,null,null,null,null,null,null,null,null,null,null,null,null,null,null,null,null,null,null,null,null,null,null,null,null,null,null,{"$f":"SUM(AD231:AF430)","v":0},null,null,null,null,null,{"$f":"SUM(AJ231:AN430)","v":0},null,null,null,null,{"$f":"SUM(AO231:AS430)","v":0}]
[]
["SEMOVENTES"]
[]
["BOVINOS"]
["TIPO DE ANIMAL",null,null,null,null,null,null,"IDADE MÉDIA\n(MESES)",null,null,null,null,null,"RAÇA:",null,null,null,null,null,"COR PREDOMINANTE",null,null,null,null,null,null,"QUANTIDADE \n(Nº CABEÇAS)",null,null,null,null,null,null,"VALOR  UN.\n (R$)",null,null,null,null,null,"VALOR \nTOTAL (R$)"]
["NOVILHO",null,null,null,null,null,null,null,null,null,null,null,null,null,null,null,null,null,null,null,null,null,null,null,null,null,null,null,null,null,null,null,null,null,null,null,null,null,null,{"$f":"IF(OR(AH437=\"\",AA437=\"\"),\"\",AH437*AA437)","v":""},null,null,null,null,null,null,{"$f":"SUM(AV437:AV486)","v":1},1]
[null,null,null,null,null,null,null,null,null,null,null,null,null,null,null,null,null,null,null,null,null,null,null,null,null,null,null,null,null,null,null,null,null,null,null,null,null,null,null,{"$f":"IF(OR(AH438=\"\",AA438=\"\"),\"\",AH438*AA438)","v":""}]
[null,null,null,null,null,null,null,null,null,null,null,null,null,null,null,null,null,null,null,null,null,null,null,null,null,null,null,null,null,null,null,null,null,null,null,null,null,null,null,""]
[null,null,null,null,null,null,null,null,null,null,null,null,null,null,null,null,null,null,null,null,null,null,null,null,null,null,null,null,null,null,null,null,null,null,null,null,null,null,null,""]
[null,null,null,null,null,null,null,null,null,null,null,null,null,null,null,null,null,null,null,null,null,null,null,null,null,null,null,null,null,null,null,null,null,null,null,null,null,null,null,""]
[null,null,null,null,null,null,null,null,null,null,null,null,null,null,null,null,null,null,null,null,null,null,null,null,null,null,null,null,null,null,null,null,null,null,null,null,null,null,null,""]
[null,null,null,null,null,null,null,null,null,null,null,null,null,null,null,null,null,null,null,null,null,null,null,null,null,null,null,null,null,null,null,null,null,null,null,null,null,null,null,""]
[null,null,null,null,null,null,null,null,null,null,null,null,null,null,null,null,null,null,null,null,null,null,null,null,null,null,null,null,null,null,null,null,null,null,null,null,null,null,null,""]
[null,null,null,null,null,null,null,null,null,null,null,null,null,null,null,null,null,null,null,null,null,null,null,null,null,null,null,null,null,null,null,null,null,null,null,null,null,null,null,""]
[null,null,null,null,null,null,null,null,null,null,null,null,null,null,null,null,null,null,null,null,null,null,null,null,null,null,null,null,null,null,null,null,null,null,null,null,null,null,null,""]
[null,null,null,null,null,null,null,null,null,null,null,null,null,null,null,null,null,null,null,null,null,null,null,null,null,null,null,null,null,null,null,null,null,null,null,null,null,null,null,""]
[null,null,null,null,null,null,null,null,null,null,null,null,null,null,null,null,null,null,null,null,null,null,null,null,null,null,null,null,null,null,null,null,null,null,null,null,null,null,null,{"$f":"IF(OR(AH448=\"\",AA448=\"\"),\"\",AH448*AA448)","v":""}]
[null,null,null,null,null,null,null,null,null,null,null,null,null,null,null,null,null,null,null,null,null,null,null,null,null,null,null,null,null,null,null,null,null,null,null,null,null,null,null,""]
[null,null,null,null,null,null,null,null,null,null,null,null,null,null,null,null,null,null,null,null,null,null,null,null,null,null,null,null,null,null,null,null,null,null,null,null,null,null,null,""]
[null,null,null,null,null,null,null,null,null,null,null,null,null,null,null,null,null,null,null,null,null,null,null,null,null,null,null,null,null,null,null,null,null,null,null,null,null,null,null,""]
[null,null,null,null,null,null,null,null,null,null,null,null,null,null,null,null,null,null,null,null,null,null,null,null,null,null,null,null,null,null,null,null,null,null,null,null,null,null,null,""]
[null,null,null,null,null,null,null,null,null,null,null,null,null,null,null,null,null,null,null,null,null,null,null,null,null,null,null,null,null,null,null,null,null,null,null,null,null,null,null,""]
[null,null,null,null,null,null,null,null,null,null,null,null,null,null,null,null,null,null,null,null,null,null,null,null,null,null,null,null,null,null,null,null,null,null,null,null,null,null,null,""]
[null,null,null,null,null,null,null,null,null,null,null,null,null,null,null,null,null,null,null,null,null,null,null,null,null,null,null,null,null,null,null,null,null,null,null,null,null,null,null,""]
[null,null,null,null,null,null,null,null,null,null,null,null,null,null,null,null,null,null,null,null,null,null,null,null,null,null,null,null,null,null,null,null,null,null,null,null,null,null,null,""]
[null,null,null,null,null,null,null,null,null,null,null,null,null,null,null,null,null,null,null,null,null,null,null,null,null,null,null,null,null,null,null,null,null,null,null,null,null,null,null,""]
[null,null,null,null,null,null,null,null,null,null,null,null,null,null,null,null,null,null,null,null,null,null,null,null,null,null,null,null,null,null,null,null,null,null,null,null,null,null,null,""]
[null,null,null,null,null,null,null,null,null,null,null,null,null,null,null,null,null,null,null,null,null,null,null,null,null,null,null,null,null,null,null,null,null,null,null,null,null,null,null,{"$f":"IF(OR(AH459=\"\",AA459=\"\"),\"\",AH459*AA459)","v":""}]
[null,null,null,null,null,null,null,null,null,null,null,null,null,null,null,null,null,null,null,null,null,null,null,null,null,null,null,null,null,null,null,null,null,null,null,null,null,null,null,""]
[null,null,null,null,null,null,null,null,null,null,null,null,null,null,null,null,null,null,null,null,null,null,null,null,null,null,null,null,null,null,null,null,null,null,null,null,null,null,null,""]
[null,null,null,null,null,null,null,null,null,null,null,null,null,null,null,null,null,null,null,null,null,null,null,null,null,null,null,null,null,null,null,null,null,null,null,null,null,null,null,""]
[null,null,null,null,null,null,null,null,null,null,null,null,null,null,null,null,null,null,null,null,null,null,null,null,null,null,null,null,null,null,null,null,null,null,null,null,null,null,null,""]
[null,null,null,null,null,null,null,null,null,null,null,null,null,null,null,null,null,null,null,null,null,null,null,null,null,null,null,null,null,null,null,null,null,null,null,null,null,null,null,""]
[null,null,null,null,null,null,null,null,null,null,null,null,null,null,null,null,null,null,null,null,null,null,null,null,null,null,null,null,null,null,null,null,null,null,null,null,null,null,null,""]
[null,null,null,null,null,null,null,null,null,null,null,null,null,null,null,null,null,null,null,null,null,null,null,null,null,null,null,null,null,null,null,null,null,null,null,null,null,null,null,""]
[null,null,null,null,null,null,null,null,null,null,null,null,null,null,null,null,null,null,null,null,null,null,null,null,null,null,null,null,null,null,null,null,null,null,null,null,null,null,null,""]
[null,null,null,null,null,null,null,null,null,null,null,null,null,null,null,null,null,null,null,null,null,null,null,null,null,null,null,null,null,null,null,null,null,null,null,null,null,null,null,""]
[null,null,null,null,null,null,null,null,null,null,null,null,null,null,null,null,null,null,null,null,null,null,null,null,null,null,null,null,null,null,null,null,null,null,null,null,null,null,null,""]
[null,null,null,null,null,null,null,null,null,null,null,null,null,null,null,null,null,null,null,null,null,null,null,null,null,null,null,null,null,null,null,null,null,null,null,null,null,null,null,""]
[null,null,null,null,null,null,null,null,null,null,null,null,null,null,null,null,null,null,null,null,null,null,null,null,null,null,null,null,null,null,null,null,null,null,null,null,null,null,null,""]
[null,null,null,null,null,null,null,null,null,null,null,null,null,null,null,null,null,null,null,null,null,null,null,null,null,null,null,null,null,null,null,null,null,null,null,null,null,null,null,""]
[null,null,null,null,null,null,null,null,null,null,null,null,null,null,null,null,null,null,null,null,null,null,null,null,null,null,null,null,null,null,null,null,null,null,null,null,null,null,null,""]
[null,null,null,null,null,null,null,null,null,null,null,null,null,null,null,null,null,null,null,null,null,null,null,null,null,null,null,null,null,null,null,null,null,null,null,null,null,null,null,""]
[null,null,null,null,null,null,null,null,null,null,null,null,null,null,null,null,null,null,null,null,null,null,null,null,null,null,null,null,null,null,null,null,null,null,null,null,null,null,null,""]
[null,null,null,null,null,null,null,null,null,null,null,null,null,null,null,null,null,null,null,null,null,null,null,null,null,null,null,null,null,null,null,null,null,null,null,null,null,null,null,""]
[null,null,null,null,null,null,null,null,null,null,null,null,null,null,null,null,null,null,null,null,null,null,null,null,null,null,null,null,null,null,null,null,null,null,null,null,null,null,null,""]
[null,null,null,null,null,null,null,null,null,null,null,null,null,null,null,null,null,null,null,null,null,null,null,null,null,null,null,null,null,null,null,null,null,null,null,null,null,null,null,""]
[null,null,null,null,null,null,null,null,null,null,null,null,null,null,null,null,null,null,null,null,null,null,null,null,null,null,null,null,null,null,null,null,null,null,null,null,null,null,null,""]
[null,null,null,null,null,null,null,null,null,null,null,null,null,null,null,null,null,null,null,null,null,null,null,null,null,null,null,null,null,null,null,null,null,null,null,null,null,null,null,""]
[null,null,null,null,null,null,null,null,null,null,null,null,null,null,null,null,null,null,null,null,null,null,null,null,null,null,null,null,null,null,null,null,null,null,null,null,null,null,null,""]
[null,null,null,null,null,null,null,null,null,null,null,null,null,null,null,null,null,null,null,null,null,null,null,null,null,null,null,null,null,null,null,null,null,null,null,null,null,null,null,""]
[null,null,null,null,null,null,null,null,null,null,null,null,null,null,null,null,null,null,null,null,null,null,null,null,null,null,null,null,null,null,null,null,null,null,null,null,null,null,null,""]
[null,null,null,null,null,null,null,null,null,null,null,null,null,null,null,null,null,null,null,null,null,null,null,null,null,null,null,null,null,null,null,null,null,null,null,null,null,null,null,""]
[null,null,null,null,null,null,null,null,null,null,null,null,null,null,null,null,null,null,null,null,null,null,null,null,null,null,null,null,null,null,null,null,null,null,null,null,null,null,null,""]
[null,null,null,null,null,null,null,null,null,null,null,null,null,null,null,null,null,null,null,null,null,null,null,null,null,null,null,null,null,null,null,null,null,null,null,null,null,null,null,""]
["TOTAL",null,null,null,null,null,null,null,null,null,null,null,null,null,null,null,null,null,null,null,null,null,null,null,null,null,{"$f":"SUM(AA437:AG486)","v":0},null,null,null,null,null,null,{"$f":"SUM(AH437:AM486)","v":0},null,null,null,null,null,{"$f":"SUM(AN437:AS486)","v":0}]
[]
["OUTROS ANIMAIS"]
["TIPO DE ANIMAL",null,null,null,null,null,null,"DESCRIÇÃO",null,null,null,null,null,null,null,null,null,null,null,null,null,null,null,null,null,null,null,null,null,null,"QTDE",null,null,"VALOR \nUNITÁRIO (R$)",null,null,null,null,null,"VALOR \nTOTAL (R$)"]
[null,null,null,null,null,null,null,null,null,null,null,null,null,null,null,null,null,null,null,null,null,null,null,null,null,null,null,null,null,null,null,null,null,null,null,null,null,null,null,{"$f":"IF(OR(AH491=\"\",AE491=\"\"),\"\",AE491*AH491)","v":""},null,null,null,null,null,null,{"$f":"SUM(AV491:AV540)","v":1},1]
[null,null,null,null,null,null,null,null,null,null,null,null,null,null,null,null,null,null,null,null,null,null,null,null,null,null,null,null,null,null,null,null,null,null,null,null,null,null,null,{"$f":"IF(OR(AH492=\"\",AE492=\"\"),\"\",AE492*AH492)","v":""}]
[null,null,null,null,null,null,null,null,null,null,null,null,null,null,null,null,null,null,null,null,null,null,null,null,null,null,null,null,null,null,null,null,null,null,null,null,null,null,null,""]
[null,null,null,null,null,null,null,null,null,null,null,null,null,null,null,null,null,null,null,null,null,null,null,null,null,null,null,null,null,null,null,null,null,null,null,null,null,null,null,""]
[null,null,null,null,null,null,null,null,null,null,null,null,null,null,null,null,null,null,null,null,null,null,null,null,null,null,null,null,null,null,null,null,null,null,null,null,null,null,null,""]
[null,null,null,null,null,null,null,null,null,null,null,null,null,null,null,null,null,null,null,null,null,null,null,null,null,null,null,null,null,null,null,null,null,null,null,null,null,null,null,""]
[null,null,null,null,null,null,null,null,null,null,null,null,null,null,null,null,null,null,null,null,null,null,null,null,null,null,null,null,null,null,null,null,null,null,null,null,null,null,null,""]
[null,null,null,null,null,null,null,null,null,null,null,null,null,null,null,null,null,null,null,null,null,null,null,null,null,null,null,null,null,null,null,null,null,null,null,null,null,null,null,""]
[null,null,null,null,null,null,null,null,null,null,null,null,null,null,null,null,null,null,null,null,null,null,null,null,null,null,null,null,null,null,null,null,null,null,null,null,null,null,null,""]
[null,null,null,null,null,null,null,null,null,null,null,null,null,null,null,null,null,null,null,null,null,null,null,null,null,null,null,null,null,null,null,null,null,null,null,null,null,null,null,""]
[null,null,null,null,null,null,null,null,null,null,null,null,null,null,null,null,null,null,null,null,null,null,null,null,null,null,null,null,null,null,null,null,null,null,null,null,null,null,null,{"$f":"IF(OR(AH501=\"\",AE501=\"\"),\"\",AE501*AH501)","v":""}]
[null,null,null,null,null,null,null,null,null,null,null,null,null,null,null,null,null,null,null,null,null,null,null,null,null,null,null,null,null,null,null,null,null,null,null,null,null,null,null,{"$f":"IF(OR(AH502=\"\",AE502=\"\"),\"\",AE502*AH502)","v":""}]
[null,null,null,null,null,null,null,null,null,null,null,null,null,null,null,null,null,null,null,null,null,null,null,null,null,null,null,null,null,null,null,null,null,null,null,null,null,null,null,""]
[null,null,null,null,null,null,null,null,null,null,null,null,null,null,null,null,null,null,null,null,null,null,null,null,null,null,null,null,null,null,null,null,null,null,null,null,null,null,null,""]
[null,null,null,null,null,null,null,null,null,null,null,null,null,null,null,null,null,null,null,null,null,null,null,null,null,null,null,null,null,null,null,null,null,null,null,null,null,null,null,""]
[null,null,null,null,null,null,null,null,null,null,null,null,null,null,null,null,null,null,null,null,null,null,null,null,null,null,null,null,null,null,null,null,null,null,null,null,null,null,null,""]
[null,null,null,null,null,null,null,null,null,null,null,null,null,null,null,null,null,null,null,null,null,null,null,null,null,null,null,null,null,null,null,null,null,null,null,null,null,null,null,""]
[null,null,null,null,null,null,null,null,null,null,null,null,null,null,null,null,null,null,null,null,null,null,null,null,null,null,null,null,null,null,null,null,null,null,null,null,null,null,null,""]
[null,null,null,null,null,null,null,null,null,null,null,null,null,null,null,null,null,null,null,null,null,null,null,null,null,null,null,null,null,null,null,null,null,null,null,null,null,null,null,""]
[null,null,null,null,null,null,null,null,null,null,null,null,null,null,null,null,null,null,null,null,null,null,null,null,null,null,null,null,null,null,null,null,null,null,null,null,null,null,null,""]
[null,null,null,null,null,null,null,null,null,null,null,null,null,null,null,null,null,null,null,null,null,null,null,null,null,null,null,null,null,null,null,null,null,null,null,null,null,null,null,{"$f":"IF(OR(AH511=\"\",AE511=\"\"),\"\",AE511*AH511)","v":""}]
[null,null,null,null,null,null,null,null,null,null,null,null,null,null,null,null,null,null,null,null,null,null,null,null,null,null,null,null,null,null,null,null,null,null,null,null,null,null,null,{"$f":"IF(OR(AH512=\"\",AE512=\"\"),\"\",AE512*AH512)","v":""}]
[null,null,null,null,null,null,null,null,null,null,null,null,null,null,null,null,null,null,null,null,null,null,null,null,null,null,null,null,null,null,null,null,null,null,null,null,null,null,null,""]
[null,null,null,null,null,null,null,null,null,null,null,null,null,null,null,null,null,null,null,null,null,null,null,null,null,null,null,null,null,null,null,null,null,null,null,null,null,null,null,""]
[null,null,null,null,null,null,null,null,null,null,null,null,null,null,null,null,null,null,null,null,null,null,null,null,null,null,null,null,null,null,null,null,null,null,null,null,null,null,null,""]
[null,null,null,null,null,null,null,null,null,null,null,null,null,null,null,null,null,null,null,null,null,null,null,null,null,null,null,null,null,null,null,null,null,null,null,null,null,null,null,""]
[null,null,null,null,null,null,null,null,null,null,null,null,null,null,null,null,null,null,null,null,null,null,null,null,null,null,null,null,null,null,null,null,null,null,null,null,null,null,null,""]
[null,null,null,null,null,null,null,null,null,null,null,null,null,null,null,null,null,null,null,null,null,null,null,null,null,null,null,null,null,null,null,null,null,null,null,null,null,null,null,""]
[null,null,null,null,null,null,null,null,null,null,null,null,null,null,null,null,null,null,null,null,null,null,null,null,null,null,null,null,null,null,null,null,null,null,null,null,null,null,null,""]
[null,null,null,null,null,null,null,null,null,null,null,null,null,null,null,null,null,null,null,null,null,null,null,null,null,null,null,null,null,null,null,null,null,null,null,null,null,null,null,""]
[null,null,null,null,null,null,null,null,null,null,null,null,null,null,null,null,null,null,null,null,null,null,null,null,null,null,null,null,null,null,null,null,null,null,null,null,null,null,null,{"$f":"IF(OR(AH521=\"\",AE521=\"\"),\"\",AE521*AH521)","v":""}]
[null,null,null,null,null,null,null,null,null,null,null,null,null,null,null,null,null,null,null,null,null,null,null,null,null,null,null,null,null,null,null,null,null,null,null,null,null,null,null,{"$f":"IF(OR(AH522=\"\",AE522=\"\"),\"\",AE522*AH522)","v":""}]
[null,null,null,null,null,null,null,null,null,null,null,null,null,null,null,null,null,null,null,null,null,null,null,null,null,null,null,null,null,null,null,null,null,null,null,null,null,null,null,""]
[null,null,null,null,null,null,null,null,null,null,null,null,null,null,null,null,null,null,null,null,null,null,null,null,null,null,null,null,null,null,null,null,null,null,null,null,null,null,null,""]
[null,null,null,null,null,null,null,null,null,null,null,null,null,null,null,null,null,null,null,null,null,null,null,null,null,null,null,null,null,null,null,null,null,null,null,null,null,null,null,""]
[null,null,null,null,null,null,null,null,null,null,null,null,null,null,null,null,null,null,null,null,null,null,null,null,null,null,null,null,null,null,null,null,null,null,null,null,null,null,null,""]
[null,null,null,null,null,null,null,null,null,null,null,null,null,null,null,null,null,null,null,null,null,null,null,null,null,null,null,null,null,null,null,null,null,null,null,null,null,null,null,""]
[null,null,null,null,null,null,null,null,null,null,null,null,null,null,null,null,null,null,null,null,null,null,null,null,null,null,null,null,null,null,null,null,null,null,null,null,null,null,null,""]
[null,null,null,null,null,null,null,null,null,null,null,null,null,null,null,null,null,null,null,null,null,null,null,null,null,null,null,null,null,null,null,null,null,null,null,null,null,null,null,""]
[null,null,null,null,null,null,null,null,null,null,null,null,null,null,null,null,null,null,null,null,null,null,null,null,null,null,null,null,null,null,null,null,null,null,null,null,null,null,null,""]
[null,null,null,null,null,null,null,null,null,null,null,null,null,null,null,null,null,null,null,null,null,null,null,null,null,null,null,null,null,null,null,null,null,null,null,null,null,null,null,""]
[null,null,null,null,null,null,null,null,null,null,null,null,null,null,null,null,null,null,null,null,null,null,null,null,null,null,null,null,null,null,null,null,null,null,null,null,null,null,null,""]
[null,null,null,null,null,null,null,null,null,null,null,null,null,null,null,null,null,null,null,null,null,null,null,null,null,null,null,null,null,null,null,null,null,null,null,null,null,null,null,""]
[null,null,null,null,null,null,null,null,null,null,null,null,null,null,null,null,null,null,null,null,null,null,null,null,null,null,null,null,null,null,null,null,null,null,null,null,null,null,null,""]
[null,null,null,null,null,null,null,null,null,null,null,null,null,null,null,null,null,null,null,null,null,null,null,null,null,null,null,null,null,null,null,null,null,null,null,null,null,null,null,""]
[null,null,null,null,null,null,null,null,null,null,null,null,null,null,null,null,null,null,null,null,null,null,null,null,null,null,null,null,null,null,null,null,null,null,null,null,null,null,null,""]
[null,null,null,null,null,null,null,null,null,null,null,null,null,null,null,null,null,null,null,null,null,null,null,null,null,null,null,null,null,null,null,null,null,null,null,null,null,null,null,""]
[null,null,null,null,null,null,null,null,null,null,null,null,null,null,null,null,null,null,null,null,null,null,null,null,null,null,null,null,null,null,null,null,null,null,null,null,null,null,null,""]
[null,null,null,null,null,null,null,null,null,null,null,null,null,null,null,null,null,null,null,null,null,null,null,null,null,null,null,null,null,null,null,null,null,null,null,null,null,null,null,""]
[null,null,null,null,null,null,null,null,null,null,null,null,null,null,null,null,null,null,null,null,null,null,null,null,null,null,null,null,null,null,null,null,null,null,null,null,null,null,null,""]
["TOTAL",null,null,null,null,null,null,null,null,null,null,null,null,null,null,null,null,null,null,null,null,null,null,null,null,null,null,null,null,null,{"$f":"SUM(AE491:AG540)","v":0},null,null,{"$f":"SUM(AH491:AM540)","v":0},null,null,null,null,null,{"$f":"SUM(AN491:AS540)","v":0}]
[]
["PATRIMÔNIO"]
[]
["BENS IMÓVEIS",null,null,null,null,null,null,null,{"$f":"SUM(I546:M548)","v":0},null,null,null,null,null,null,null,"BENS MÓVEIS",null,null,null,null,null,null,null,{"$f":"SUM(Y546:AC548)","v":0},null,null,null,null,null,null,null,"SEMOVENTES",null,null,null,null,null,null,null,{"$f":"SUM(AO546:AS547)","v":0}]
["RURAIS",null,null,null,null,null,null,null,{"$f":"SUMIF(C69:E168,\"RURAL\",AO69:AS168)","v":0},null,null,null,null,null,null,null,"VEÍCULOS",null,null,null,null,null,null,null,{"$f":"SUMIF(A231:F430,\"VEÍCULO\",AO231:AS430)","v":0},null,null,null,null,null,null,null,"BOVINOS",null,null,null,null,null,null,null,{"$f":"SUM(AN437:AS486)","v":0}]
["URBANOS",null,null,null,null,null,null,null,{"$f":"SUMIF(C69:E168,\"URBANO\",AO69:AS168)","v":0},null,null,null,null,null,null,"MÁQUINAS",null,null,null,null,null,null,null,null,{"$f":"SUMIF(A231:F430,\"MÁQUINA\",AO231:AS430)","v":0},null,null,null,null,null,null,null,"OUTROS ANIMAIS",null,null,null,null,null,null,null,{"$f":"SUM(AN491:AS540)","v":0}]
["BENFEITORIAS",null,null,null,null,null,null,null,{"$f":"SUM(AN173:AS222)","v":0},null,null,null,null,null,null,null,"EQUIPAMENTOS",null,null,null,null,null,null,null,{"$f":"SUMIF(A231:F430,\"EQUIPAMENTO\",AO231:AS430)","v":0}]
[null,null,null,null,null,null,null,null,null,null,"PATRIMÔNIO TOTAL:",null,null,null,null,null,null,null,null,null,null,null,null,null,null,{"$f":"I545+Y545+AO545","v":0}]
[]
["RECEITAS E DESPESAS"]
[]
["TIPO DE RENDA:",null,null,null,null,null,"REALIZADA",null,null,null,null,null,null,null,{"$f":"IF(TIPO_RENDA=\"PROJETADA\",\"SAFRA PROJETADA:\",\"SAFRA REALIZADA:\")","v":"SAFRA REALIZADA:"},null,null,null,null,null,null,null,null,null,"/"]
[]
["ATIVIDADES AGRÍCOLAS - REALIZADAS"]
[]
["RECEITA"]
["CULTURA",null,null,null,null,"EMPRESA / GRUPO",null,null,null,null,null,null,"PARTICIPAÇÃO\n(%)",null,null,null,null,"ÁREA\n(ha)",null,null,null,null,"PRODUTIVIDADE (kg/ha)",null,null,null,null,null,"RECEITA\n(R$/kg)",null,null,null,null,null,"VALOR TOTAL\n(R$)",null,null,null,null,null,"VALOR PART. \n(R$)"]
[null,null,null,null,null,null,null,null,null,null,null,null,null,null,null,null,null,null,null,null,null,null,null,null,null,null,null,null,null,null,null,null,null,null,{"$f":"IF(AC559*W559*R559<>0,AC559*W559*R559,\"\")","v":""},null,null,null,null,null,{"$f":"IF(AI559=\"\",\"\",AI559*M559)","v":""},null,null,null,null,null,{"$f":"SUM(AV559:AV578)","v":1},1]
[null,null,null,null,null,null,null,null,null,null,null,null,null,null,null,null,null,null,null,null,null,null,null,null,null,null,null,null,null,null,null,null,null,null,{"$f":"IF(AC560*W560*R560<>0,AC560*W560*R560,\"\")","v":""},null,null,null,null,null,{"$f":"IF(AI560=\"\",\"\",AI560*M560)","v":""}]
[null,null,null,null,null,null,null,null,null,null,null,null,null,null,null,null,null,null,null,null,null,null,null,null,null,null,null,null,null,null,null,null,null,null,"",null,null,null,null,null,""]
[null,null,null,null,null,null,null,null,null,null,null,null,null,null,null,null,null,null,null,null,null,null,null,null,null,null,null,null,null,null,null,null,null,null,"",null,null,null,null,null,""]
[null,null,null,null,null,null,null,null,null,null,null,null,null,null,null,null,null,null,null,null,null,null,null,null,null,null,null,null,null,null,null,null,null,null,"",null,null,null,null,null,""]
[null,null,null,null,null,null,null,null,null,null,null,null,null,null,null,null,null,null,null,null,null,null,null,null,null,null,null,null,null,null,null,null,null,null,"",null,null,null,null,null,""]
[null,null,null,null,null,null,null,null,null,null,null,null,null,null,null,null,null,null,null,null,null,null,null,null,null,null,null,null,null,null,null,null,null,null,"",null,null,null,null,null,""]
[null,null,null,null,null,null,null,null,null,null,null,null,null,null,null,null,null,null,null,null,null,null,null,null,null,null,null,null,null,null,null,null,null,null,"",null,null,null,null,null,""]
[null,null,null,null,null,null,null,null,null,null,null,null,null,null,null,null,null,null,null,null,null,null,null,null,null,null,null,null,null,null,null,null,null,null,"",null,null,null,null,null,""]
[null,null,null,null,null,null,null,null,null,null,null,null,null,null,null,null,null,null,null,null,null,null,null,null,null,null,null,null,null,null,null,null,null,null,"",null,null,null,null,null,""]
[null,null,null,null,null,null,null,null,null,null,null,null,null,null,null,null,null,null,null,null,null,null,null,null,null,null,null,null,null,null,null,null,null,null,"",null,null,null,null,null,""]
[null,null,null,null,null,null,null,null,null,null,null,null,null,null,null,null,null,null,null,null,null,null,null,null,null,null,null,null,null,null,null,null,null,null,"",null,null,null,null,null,""]
[null,null,null,null,null,null,null,null,null,null,null,null,null,null,null,null,null,null,null,null,null,null,null,null,null,null,null,null,null,null,null,null,null,null,"",null,null,null,null,null,""]
[null,null,null,null,null,null,null,null,null,null,null,null,null,null,null,null,null,null,null,null,null,null,null,null,null,null,null,null,null,null,null,null,null,null,"",null,null,null,null,null,""]
[null,null,null,null,null,null,null,null,null,null,null,null,null,null,null,null,null,null,null,null,null,null,null,null,null,null,null,null,null,null,null,null,null,null,"",null,null,null,null,null,""]
[null,null,null,null,null,null,null,null,null,null,null,null,null,null,null,null,null,null,null,null,null,null,null,null,null,null,null,null,null,null,null,null,null,null,"",null,null,null,null,null,""]
[null,null,null,null,null,null,null,null,null,null,null,null,null,null,null,null,null,null,null,null,null,null,null,null,null,null,null,null,null,null,null,null,null,null,"",null,null,null,null,null,""]
[null,null,null,null,null,null,null,null,null,null,null,null,null,null,null,null,null,null,null,null,null,null,null,null,null,null,null,null,null,null,null,null,null,null,"",null,null,null,null,null,""]
[null,null,null,null,null,null,null,null,null,null,null,null,null,null,null,null,null,null,null,null,null,null,null,null,null,null,null,null,null,null,null,null,null,null,"",null,null,null,null,null,""]
[null,null,null,null,null,null,null,null,null,null,null,null,null,null,null,null,null,null,null,null,null,null,null,null,null,null,null,null,null,null,null,null,null,null,"",null,null,null,null,null,""]
["DESPESA"]
["CULTURA",null,null,null,null,"EMPRESA / GRUPO",null,null,null,null,null,null,"PARTICIPAÇÃO\n(%)",null,null,null,null,"ÁREA\n(ha)",null,null,null,null,"PRODUTIVIDADE (kg/ha)",null,null,null,null,null,"DESPESA\n(R$/kg)",null,null,null,null,null,"VALOR TOTAL\n(R$)",null,null,null,null,null,"VALOR PART. \n(R$)"]
[{"$f":"IF(A559=\"\",\"\",A559)","v":""},null,null,null,null,{"$f":"IF(F559=\"\",\"\",F559)","v":""},null,null,null,null,null,null,{"$f":"IF(M559=\"\",\"\",M559)","v":""},null,null,null,null,{"$f":"IF(R559=\"\",\"\",R559)","v":""},null,null,null,null,{"$f":"IF(W559=\"\",\"\",W559)","v":""},null,null,null,null,null,40,null,null,null,null,null,{"$f":"IF(AC581=\"\",\"\",AC581*W581*R581)","v":{"$error":"#VALUE!"}},null,null,null,null,null,{"$f":"IF(AI581=\"\",\"\",AI581*M581)","v":{"$error":"#VALUE!"}},null,null,null,null,null,{"$f":"SUM(AV581:AV600)","v":1},1]
["",null,null,null,null,"",null,null,null,null,null,null,"",null,null,null,null,"",null,null,null,null,"",null,null,null,null,null,null,null,null,null,null,null,{"$f":"IF(AC582=\"\",\"\",AC582*W582*R582)","v":""},null,null,null,null,null,{"$f":"IF(AI582=\"\",\"\",AI582*M582)","v":""}]
["",null,null,null,null,"",null,null,null,null,null,null,"",null,null,null,null,"",null,null,null,null,"",null,null,null,null,null,null,null,null,null,null,null,"",null,null,null,null,null,""]
["",null,null,null,null,"",null,null,null,null,null,null,"",null,null,null,null,"",null,null,null,null,"",null,null,null,null,null,null,null,null,null,null,null,"",null,null,null,null,null,""]
["",null,null,null,null,"",null,null,null,null,null,null,"",null,null,null,null,"",null,null,null,null,"",null,null,null,null,null,null,null,null,null,null,null,"",null,null,null,null,null,""]
["",null,null,null,null,"",null,null,null,null,null,null,"",null,null,null,null,"",null,null,null,null,"",null,null,null,null,null,null,null,null,null,null,null,"",null,null,null,null,null,""]
["",null,null,null,null,"",null,null,null,null,null,null,"",null,null,null,null,"",null,null,null,null,"",null,null,null,null,null,null,null,null,null,null,null,"",null,null,null,null,null,""]
["",null,null,null,null,"",null,null,null,null,null,null,"",null,null,null,null,"",null,null,null,null,"",null,null,null,null,null,null,null,null,null,null,null,"",null,null,null,null,null,""]
["",null,null,null,null,"",null,null,null,null,null,null,"",null,null,null,null,"",null,null,null,null,"",null,null,null,null,null,null,null,null,null,null,null,"",null,null,null,null,null,""]
["",null,null,null,null,"",null,null,null,null,null,null,"",null,null,null,null,"",null,null,null,null,"",null,null,null,null,null,null,null,null,null,null,null,"",null,null,null,null,null,""]
["",null,null,null,null,"",null,null,null,null,null,null,"",null,null,null,null,"",null,null,null,null,"",null,null,null,null,null,null,null,null,null,null,null,"",null,null,null,null,null,""]
["",null,null,null,null,"",null,null,null,null,null,null,"",null,null,null,null,"",null,null,null,null,"",null,null,null,null,null,null,null,null,null,null,null,"",null,null,null,null,null,""]
["",null,null,null,null,"",null,null,null,null,null,null,"",null,null,null,null,"",null,null,null,null,"",null,null,null,null,null,null,null,null,null,null,null,"",null,null,null,null,null,""]
["",null,null,null,null,"",null,null,null,null,null,null,"",null,null,null,null,"",null,null,null,null,"",null,null,null,null,null,null,null,null,null,null,null,"",null,null,null,null,null,""]
["",null,null,null,null,"",null,null,null,null,null,null,"",null,null,null,null,"",null,null,null,null,"",null,null,null,null,null,null,null,null,null,null,null,"",null,null,null,null,null,""]
["",null,null,null,null,"",null,null,null,null,null,null,"",null,null,null,null,"",null,null,null,null,"",null,null,null,null,null,null,null,null,null,null,null,"",null,null,null,null,null,""]
["",null,null,null,null,"",null,null,null,null,null,null,"",null,null,null,null,"",null,null,null,null,"",null,null,null,null,null,null,null,null,null,null,null,"",null,null,null,null,null,""]
["",null,null,null,null,"",null,null,null,null,null,null,"",null,null,null,null,"",null,null,null,null,"",null,null,null,null,null,null,null,null,null,null,null,"",null,null,null,null,null,""]
["",null,null,null,null,"",null,null,null,null,null,null,"",null,null,null,null,"",null,null,null,null,"",null,null,null,null,null,null,null,null,null,null,null,"",null,null,null,null,null,""]
["",null,null,null,null,"",null,null,null,null,null,null,"",null,null,null,null,"",null,null,null,null,"",null,null,null,null,null,null,null,null,null,null,null,"",null,null,null,null,null,""]
[]
["ATIVIDADES PECUÁRIAS - REALIZADAS"]
[]
["RECEITA"]
["ATIVIDADE",null,null,null,null,null,"EMPRESA / GRUPO",null,null,null,null,null,null,"PARTICIPAÇÃO\n(%)",null,null,null,null,"UNIDADE DE\nPRODUÇÃO",null,null,null,null,"PRODUTIVIDADE",null,null,null,null,null,"RECEITA\n(R$/UN)",null,null,null,null,"VALOR TOTAL\n(R$)",null,null,null,null,null,"VALOR PART. \n(R$)"]
[null,null,null,null,null,null,null,null,null,null,null,null,null,null,null,null,null,null,{"$f":"IF(A606=\"LEITE\",\"LITROS\",IF(A606<>\"\",\"CABEÇAS\",\"\"))","v":""},null,null,null,null,null,null,null,null,null,null,null,null,null,null,null,{"$f":"IF(X606*AD606=0,\"\",X606*AD606)","v":""},null,null,null,null,null,{"$f":"IF(AI606=\"\",\"\",AI606*N606)","v":""},null,null,null,null,null,{"$f":"SUM(AV606:AV625)","v":1},1]
[null,null,null,null,null,null,null,null,null,null,null,null,null,null,null,null,null,null,{"$f":"IF(A607=\"LEITE\",\"LITROS\",IF(A607<>\"\",\"CABEÇAS\",\"\"))","v":""},null,null,null,null,null,null,null,null,null,null,null,null,null,null,null,{"$f":"IF(X607*AD607=0,\"\",X607*AD607)","v":""},null,null,null,null,null,{"$f":"IF(AI607=\"\",\"\",AI607*N607)","v":""}]
[null,null,null,null,null,null,null,null,null,null,null,null,null,null,null,null,null,null,{"$f":"IF(A608=\"LEITE\",\"LITROS\",IF(A608<>\"\",\"CABEÇAS\",\"\"))","v":""},null,null,null,null,null,null,null,null,null,null,null,null,null,null,null,{"$f":"IF(X608*AD608=0,\"\",X608*AD608)","v":""},null,null,null,null,null,{"$f":"IF(AI608=\"\",\"\",AI608*N608)","v":""}]
[null,null,null,null,null,null,null,null,null,null,null,null,null,null,null,null,null,null,"",null,null,null,null,null,null,null,null,null,null,null,null,null,null,null,"",null,null,null,null,null,""]
[null,null,null,null,null,null,null,null,null,null,null,null,null,null,null,null,null,null,"",null,null,null,null,null,null,null,null,null,null,null,null,null,null,null,"",null,null,null,null,null,""]
[null,null,null,null,null,null,null,null,null,null,null,null,null,null,null,null,null,null,"",null,null,null,null,null,null,null,null,null,null,null,null,null,null,null,"",null,null,null,null,null,""]
[null,null,null,null,null,null,null,null,null,null,null,null,null,null,null,null,null,null,"",null,null,null,null,null,null,null,null,null,null,null,null,null,null,null,"",null,null,null,null,null,""]
[null,null,null,null,null,null,null,null,null,null,null,null,null,null,null,null,null,null,"",null,null,null,null,null,null,null,null,null,null,null,null,null,null,null,"",null,null,null,null,null,""]
[null,null,null,null,null,null,null,null,null,null,null,null,null,null,null,null,null,null,"",null,null,null,null,null,null,null,null,null,null,null,null,null,null,null,{"$f":"IF(X614*AD614=0,\"\",X614*AD614)","v":""},null,null,null,null,null,""]
[null,null,null,null,null,null,null,null,null,null,null,null,null,null,null,null,null,null,"",null,null,null,null,null,null,null,null,null,null,null,null,null,null,null,"",null,null,null,null,null,""]
[null,null,null,null,null,null,null,null,null,null,null,null,null,null,null,null,null,null,"",null,null,null,null,null,null,null,null,null,null,null,null,null,null,null,"",null,null,null,null,null,""]
[null,null,null,null,null,null,null,null,null,null,null,null,null,null,null,null,null,null,"",null,null,null,null,null,null,null,null,null,null,null,null,null,null,null,"",null,null,null,null,null,""]
[null,null,null,null,null,null,null,null,null,null,null,null,null,null,null,null,null,null,"",null,null,null,null,null,null,null,null,null,null,null,null,null,null,null,"",null,null,null,null,null,""]
[null,null,null,null,null,null,null,null,null,null,null,null,null,null,null,null,null,null,"",null,null,null,null,null,null,null,null,null,null,null,null,null,null,null,"",null,null,null,null,null,""]
[null,null,null,null,null,null,null,null,null,null,null,null,null,null,null,null,null,null,"",null,null,null,null,null,null,null,null,null,null,null,null,null,null,null,"",null,null,null,null,null,""]
[null,null,null,null,null,null,null,null,null,null,null,null,null,null,null,null,null,null,"",null,null,null,null,null,null,null,null,null,null,null,null,null,null,null,"",null,null,null,null,null,""]
[null,null,null,null,null,null,null,null,null,null,null,null,null,null,null,null,null,null,"",null,null,null,null,null,null,null,null,null,null,null,null,null,null,null,"",null,null,null,null,null,""]
[null,null,null,null,null,null,null,null,null,null,null,null,null,null,null,null,null,null,"",null,null,null,null,null,null,null,null,null,null,null,null,null,null,null,"",null,null,null,null,null,""]
[null,null,null,null,null,null,null,null,null,null,null,null,null,null,null,null,null,null,"",null,null,null,null,null,null,null,null,null,null,null,null,null,null,null,"",null,null,null,null,null,""]
[null,null,null,null,null,null,null,null,null,null,null,null,null,null,null,null,null,null,"",null,null,null,null,null,null,null,null,null,null,null,null,null,null,null,"",null,null,null,null,null,""]
["DESPESA"]
["ATIVIDADE",null,null,null,null,null,"EMPRESA / GRUPO",null,null,null,null,null,null,"PARTICIPAÇÃO\n(%)",null,null,null,null,"UNIDADE DE\nPRODUÇÃO",null,null,null,null,"PRODUTIVIDADE",null,null,null,null,null,"DESPESA\n(R$/UN)",null,null,null,null,"VALOR TOTAL\n(R$)",null,null,null,null,null,"VALOR PART. \n(R$)"]
[{"$f":"IF(A606=\"\",\"\",A606)","v":""},null,null,null,null,null,{"$f":"IF(G606=\"\",\"\",G606)","v":""},null,null,null,null,null,null,{"$f":"IF(N606=\"\",\"\",N606)","v":""},null,null,null,null,{"$f":"IF(S606=\"\",\"\",S606)","v":""},null,null,null,null,{"$f":"IF(X606=\"\",\"\",X606)","v":""},null,null,null,null,null,10,null,null,null,null,{"$f":"IF(OR(AD628=\"\",X628=\"\"),\"\",AD628*X628)","v":""},null,null,null,null,null,{"$f":"IF(OR(AD628=\"\",X628=\"\",N628=\"\"),\"\",AD628*X628*N628)","v":""},null,null,null,null,null,{"$f":"SUM(AV628:AV647)","v":1},1]
["",null,null,null,null,null,"",null,null,null,null,null,null,"",null,null,null,null,"",null,null,null,null,"",null,null,null,null,null,null,null,null,null,null,{"$f":"IF(OR(AD629=\"\",X629=\"\"),\"\",AD629*X629)","v":""},null,null,null,null,null,{"$f":"IF(OR(AD629=\"\",X629=\"\",N629=\"\"),\"\",AD629*X629*N629)","v":""}]
["",null,null,null,null,null,"",null,null,null,null,null,null,"",null,null,null,null,"",null,null,null,null,"",null,null,null,null,null,null,null,null,null,null,"",null,null,null,null,null,""]
["",null,null,null,null,null,"",null,null,null,null,null,null,"",null,null,null,null,"",null,null,null,null,"",null,null,null,null,null,null,null,null,null,null,"",null,null,null,null,null,""]
["",null,null,null,null,null,"",null,null,null,null,null,null,"",null,null,null,null,"",null,null,null,null,"",null,null,null,null,null,null,null,null,null,null,"",null,null,null,null,null,""]
["",null,null,null,null,null,"",null,null,null,null,null,null,"",null,null,null,null,"",null,null,null,null,"",null,null,null,null,null,null,null,null,null,null,"",null,null,null,null,null,""]
["",null,null,null,null,null,"",null,null,null,null,null,null,"",null,null,null,null,"",null,null,null,null,"",null,null,null,null,null,null,null,null,null,null,"",null,null,null,null,null,""]
["",null,null,null,null,null,"",null,null,null,null,null,null,"",null,null,null,null,"",null,null,null,null,"",null,null,null,null,null,null,null,null,null,null,"",null,null,null,null,null,""]
["",null,null,null,null,null,"",null,null,null,null,null,null,"",null,null,null,null,"",null,null,null,null,"",null,null,null,null,null,null,null,null,null,null,"",null,null,null,null,null,""]
["",null,null,null,null,null,"",null,null,null,null,null,null,"",null,null,null,null,"",null,null,null,null,"",null,null,null,null,null,null,null,null,null,null,"",null,null,null,null,null,""]
["",null,null,null,null,null,"",null,null,null,null,null,null,"",null,null,null,null,"",null,null,null,null,"",null,null,null,null,null,null,null,null,null,null,"",null,null,null,null,null,""]
["",null,null,null,null,null,"",null,null,null,null,null,null,"",null,null,null,null,"",null,null,null,null,"",null,null,null,null,null,null,null,null,null,null,"",null,null,null,null,null,""]
["",null,null,null,null,null,"",null,null,null,null,null,null,"",null,null,null,null,"",null,null,null,null,"",null,null,null,null,null,null,null,null,null,null,"",null,null,null,null,null,""]
["",null,null,null,null,null,"",null,null,null,null,null,null,"",null,null,null,null,"",null,null,null,null,"",null,null,null,null,null,null,null,null,null,null,"",null,null,null,null,null,""]
["",null,null,null,null,null,"",null,null,null,null,null,null,"",null,null,null,null,"",null,null,null,null,"",null,null,null,null,null,null,null,null,null,null,"",null,null,null,null,null,""]
["",null,null,null,null,null,"",null,null,null,null,null,null,"",null,null,null,null,"",null,null,null,null,"",null,null,null,null,null,null,null,null,null,null,"",null,null,null,null,null,""]
["",null,null,null,null,null,"",null,null,null,null,null,null,"",null,null,null,null,"",null,null,null,null,"",null,null,null,null,null,null,null,null,null,null,"",null,null,null,null,null,""]
["",null,null,null,null,null,"",null,null,null,null,null,null,"",null,null,null,null,"",null,null,null,null,"",null,null,null,null,null,null,null,null,null,null,"",null,null,null,null,null,""]
["",null,null,null,null,null,"",null,null,null,null,null,null,"",null,null,null,null,"",null,null,null,null,"",null,null,null,null,null,null,null,null,null,null,"",null,null,null,null,null,""]
["",null,null,null,null,null,"",null,null,null,null,null,null,"",null,null,null,null,"",null,null,null,null,"",null,null,null,null,null,null,null,null,null,null,"",null,null,null,null,null,""]
[]
["MARGEM FINANCEIRA - REALIZADA"]
[]
["RECEITAS",null,null,null,null,null,null,null,null,null,null,null,null,null,null,null,null,{"$f":"IF(SUM(R652:W653)+SUM(R659:W662)=0,0,SUM(R652:W653)+SUM(R659:W662))","v":0},null,null,null,null,null,"DESPESAS",null,null,null,null,null,null,null,null,null,null,null,null,null,null,null,{"$f":"IF(SUM(AN652:AS656)+SUM(AN659:AS662)+AN657=0,0,SUM(AN652:AS656)+SUM(AN659:AS662)+AN657*12)","v":{"$error":"#VALUE!"}}]
["RECEITA REALIZADA ATIVIDADES AGRÍCOLAS",null,null,null,null,null,null,null,null,null,null,null,null,null,null,null,null,{"$f":"SUM(AO559:AS578)","v":0},null,null,null,null,null,"CUSTO REALIZADO ATIVIDADES AGRÍCOLAS",null,null,null,null,null,null,null,null,null,null,null,null,null,null,null,{"$f":"SUM(AO581:AS600)","v":{"$error":"#VALUE!"}}]
["RECEITA REALIZADA ATIVIDADES PECUÁRIAS",null,null,null,null,null,null,null,null,null,null,null,null,null,null,null,null,{"$f":"SUM(AO606:AS625)","v":0},null,null,null,null,null,"CUSTO REALIZADO ATIVIDADES PECUÁRIAS",null,null,null,null,null,null,null,null,null,null,null,null,null,null,null,{"$f":"SUM(AO628:AS647)","v":0}]
[null,null,null,null,null,null,null,null,null,null,null,null,null,null,null,null,null,null,null,null,null,null,null,"ARRENDAMENTOS"]
[null,null,null,null,null,null,null,null,null,null,null,null,null,null,null,null,null,null,null,null,null,null,null,"JUROS DE FINANCIAMENTOS"]
[null,null,null,null,null,null,null,null,null,null,null,null,null,null,null,null,null,null,null,null,null,null,null,"MANUTENÇÃO DE MAQUINÁRIO"]
[null,null,null,null,null,null,null,null,null,null,null,null,null,null,null,null,null,null,null,null,null,null,null,"MANUTENÇÃO FAMILIAR MENSAL"]
["OUTRAS RECEITAS",null,null,null,null,null,null,null,null,null,null,null,null,null,null,null,null,null,null,null,null,null,null,"OUTRAS DESPESAS"]
[]
[]
[]
[]
[null,null,null,null,null,null,null,null,null,null,"MARGEM FINANCEIRA LÍQUIDA:",null,null,null,null,null,null,null,null,null,null,null,null,null,null,{"$f":"IF(AND(R651=\"\",AN651=\"\"),\"\",R651-AN651)","v":{"$error":"#VALUE!"}}]
[]
["ATIVIDADE AGRÍCOLAS - PROJETADAS"]
[]
["RECEITA"]
["CULTURA",null,null,null,null,"EMPRESA / GRUPO",null,null,null,null,null,null,"PARTICIPAÇÃO\n(%)",null,null,null,null,"ÁREA\n(ha)",null,null,null,null,"PRODUTIVIDADE (kg/ha)",null,null,null,null,null,"RECEITA\n(R$/kg)",null,null,null,null,null,"VALOR TOTAL\n(R$)",null,null,null,null,null,"VALOR PART. \n(R$)"]
[null,null,null,null,null,null,null,null,null,null,null,null,null,null,null,null,null,null,null,null,null,null,null,null,null,null,null,null,null,null,null,null,null,null,{"$f":"IF(AC669*W669*R669<>0,AC669*W669*R669,\"\")","v":""},null,null,null,null,null,{"$f":"IF(AI669=\"\",\"\",AI669*M669)","v":""},null,null,null,null,null,{"$f":"SUM(AV669:AV688)","v":1},1]
[null,null,null,null,null,null,null,null,null,null,null,null,null,null,null,null,null,null,null,null,null,null,null,null,null,null,null,null,null,null,null,null,null,null,{"$f":"IF(AC670*W670*R670<>0,AC670*W670*R670,\"\")","v":""},null,null,null,null,null,{"$f":"IF(AI670=\"\",\"\",AI670*M670)","v":""}]
[null,null,null,null,null,null,null,null,null,null,null,null,null,null,null,null,null,null,null,null,null,null,null,null,null,null,null,null,null,null,null,null,null,null,"",null,null,null,null,null,""]
[null,null,null,null,null,null,null,null,null,null,null,null,null,null,null,null,null,null,null,null,null,null,null,null,null,null,null,null,null,null,null,null,null,null,"",null,null,null,null,null,""]
[null,null,null,null,null,null,null,null,null,null,null,null,null,null,null,null,null,null,null,null,null,null,null,null,null,null,null,null,null,null,null,null,null,null,"",null,null,null,null,null,""]
[null,null,null,null,null,null,null,null,null,null,null,null,null,null,null,null,null,null,null,null,null,null,null,null,null,null,null,null,null,null,null,null,null,null,"",null,null,null,null,null,""]
[null,null,null,null,null,null,null,null,null,null,null,null,null,null,null,null,null,null,null,null,null,null,null,null,null,null,null,null,null,null,null,null,null,null,"",null,null,null,null,null,""]
[null,null,null,null,null,null,null,null,null,null,null,null,null,null,null,null,null,null,null,null,null,null,null,null,null,null,null,null,null,null,null,null,null,null,"",null,null,null,null,null,""]
[null,null,null,null,null,null,null,null,null,null,null,null,null,null,null,null,null,null,null,null,null,null,null,null,null,null,null,null,null,null,null,null,null,null,"",null,null,null,null,null,""]
[null,null,null,null,null,null,null,null,null,null,null,null,null,null,null,null,null,null,null,null,null,null,null,null,null,null,null,null,null,null,null,null,null,null,"",null,null,null,null,null,""]
[null,null,null,null,null,null,null,null,null,null,null,null,null,null,null,null,null,null,null,null,null,null,null,null,null,null,null,null,null,null,null,null,null,null,"",null,null,null,null,null,""]
[null,null,null,null,null,null,null,null,null,null,null,null,null,null,null,null,null,null,null,null,null,null,null,null,null,null,null,null,null,null,null,null,null,null,"",null,null,null,null,null,""]
[null,null,null,null,null,null,null,null,null,null,null,null,null,null,null,null,null,null,null,null,null,null,null,null,null,null,null,null,null,null,null,null,null,null,"",null,null,null,null,null,""]
[null,null,null,null,null,null,null,null,null,null,null,null,null,null,null,null,null,null,null,null,null,null,null,null,null,null,null,null,null,null,null,null,null,null,"",null,null,null,null,null,""]
[null,null,null,null,null,null,null,null,null,null,null,null,null,null,null,null,null,null,null,null,null,null,null,null,null,null,null,null,null,null,null,null,null,null,"",null,null,null,null,null,""]
[null,null,null,null,null,null,null,null,null,null,null,null,null,null,null,null,null,null,null,null,null,null,null,null,null,null,null,null,null,null,null,null,null,null,"",null,null,null,null,null,""]
[null,null,null,null,null,null,null,null,null,null,null,null,null,null,null,null,null,null,null,null,null,null,null,null,null,null,null,null,null,null,null,null,null,null,"",null,null,null,null,null,""]
[null,null,null,null,null,null,null,null,null,null,null,null,null,null,null,null,null,null,null,null,null,null,null,null,null,null,null,null,null,null,null,null,null,null,"",null,null,null,null,null,""]
[null,null,null,null,null,null,null,null,null,null,null,null,null,null,null,null,null,null,null,null,null,null,null,null,null,null,null,null,null,null,null,null,null,null,"",null,null,null,null,null,""]
[null,null,null,null,null,null,null,null,null,null,null,null,null,null,null,null,null,null,null,null,null,null,null,null,null,null,null,null,null,null,null,null,null,null,"",null,null,null,null,null,""]
["DESPESA"]
["CULTURA",null,null,null,null,"EMPRESA / GRUPO",null,null,null,null,null,null,"PARTICIPAÇÃO\n(%)",null,null,null,null,"ÁREA\n(ha)",null,null,null,null,"PRODUTIVIDADE (kg/ha)",null,null,null,null,null,"DESPESA\n(R$/kg)",null,null,null,null,null,"VALOR TOTAL\n(R$)",null,null,null,null,null,"VALOR PART. \n(R$)"]
[{"$f":"IF(A669=\"\",\"\",A669)","v":""},null,null,null,null,{"$f":"IF(F669=\"\",\"\",F669)","v":""},null,null,null,null,null,null,{"$f":"IF(M669=\"\",\"\",M669)","v":""},null,null,null,null,{"$f":"IF(R669=\"\",\"\",R669)","v":""},null,null,null,null,{"$f":"IF(W669=\"\",\"\",W669)","v":""},null,null,null,null,null,null,null,null,null,null,null,{"$f":"IF(AC691=\"\",\"\",AC691*W691*R691)","v":""},null,null,null,null,null,{"$f":"IF(AI691=\"\",\"\",AI691*M691)","v":""},null,null,null,null,null,{"$f":"SUM(AV691:AV710)","v":1},1]
["",null,null,null,null,"",null,null,null,null,null,null,"",null,null,null,null,"",null,null,null,null,"",null,null,null,null,null,null,null,null,null,null,null,{"$f":"IF(AC692=\"\",\"\",AC692*W692*R692)","v":""},null,null,null,null,null,{"$f":"IF(AI692=\"\",\"\",AI692*M692)","v":""}]
["",null,null,null,null,"",null,null,null,null,null,null,"",null,null,null,null,"",null,null,null,null,"",null,null,null,null,null,null,null,null,null,null,null,"",null,null,null,null,null,""]
["",null,null,null,null,"",null,null,null,null,null,null,"",null,null,null,null,"",null,null,null,null,"",null,null,null,null,null,null,null,null,null,null,null,"",null,null,null,null,null,""]
["",null,null,null,null,"",null,null,null,null,null,null,"",null,null,null,null,"",null,null,null,null,"",null,null,null,null,null,null,null,null,null,null,null,"",null,null,null,null,null,""]
["",null,null,null,null,"",null,null,null,null,null,null,"",null,null,null,null,"",null,null,null,null,"",null,null,null,null,null,null,null,null,null,null,null,"",null,null,null,null,null,""]
["",null,null,null,null,"",null,null,null,null,null,null,"",null,null,null,null,"",null,null,null,null,"",null,null,null,null,null,null,null,null,null,null,null,"",null,null,null,null,null,""]
["",null,null,null,null,"",null,null,null,null,null,null,"",null,null,null,null,"",null,null,null,null,"",null,null,null,null,null,null,null,null,null,null,null,"",null,null,null,null,null,""]
["",null,null,null,null,"",null,null,null,null,null,null,"",null,null,null,null,"",null,null,null,null,"",null,null,null,null,null,null,null,null,null,null,null,"",null,null,null,null,null,""]
["",null,null,null,null,"",null,null,null,null,null,null,"",null,null,null,null,"",null,null,null,null,"",null,null,null,null,null,null,null,null,null,null,null,"",null,null,null,null,null,""]
["",null,null,null,null,"",null,null,null,null,null,null,"",null,null,null,null,"",null,null,null,null,"",null,null,null,null,null,null,null,null,null,null,null,"",null,null,null,null,null,""]
["",null,null,null,null,"",null,null,null,null,null,null,"",null,null,null,null,"",null,null,null,null,"",null,null,null,null,null,null,null,null,null,null,null,"",null,null,null,null,null,""]
["",null,null,null,null,"",null,null,null,null,null,null,"",null,null,null,null,"",null,null,null,null,"",null,null,null,null,null,null,null,null,null,null,null,"",null,null,null,null,null,""]
["",null,null,null,null,"",null,null,null,null,null,null,"",null,null,null,null,"",null,null,null,null,"",null,null,null,null,null,null,null,null,null,null,null,"",null,null,null,null,null,""]
["",null,null,null,null,"",null,null,null,null,null,null,"",null,null,null,null,"",null,null,null,null,"",null,null,null,null,null,null,null,null,null,null,null,"",null,null,null,null,null,""]
["",null,null,null,null,"",null,null,null,null,null,null,"",null,null,null,null,"",null,null,null,null,"",null,null,null,null,null,null,null,null,null,null,null,"",null,null,null,null,null,""]
["",null,null,null,null,"",null,null,null,null,null,null,"",null,null,null,null,"",null,null,null,null,"",null,null,null,null,null,null,null,null,null,null,null,"",null,null,null,null,null,""]
["",null,null,null,null,"",null,null,null,null,null,null,"",null,null,null,null,"",null,null,null,null,"",null,null,null,null,null,null,null,null,null,null,null,"",null,null,null,null,null,""]
["",null,null,null,null,"",null,null,null,null,null,null,"",null,null,null,null,"",null,null,null,null,"",null,null,null,null,null,null,null,null,null,null,null,"",null,null,null,null,null,""]
["",null,null,null,null,"",null,null,null,null,null,null,"",null,null,null,null,"",null,null,null,null,"",null,null,null,null,null,null,null,null,null,null,null,"",null,null,null,null,null,""]
[]
["ATIVIDADE PECUÁRIAS - PROJETADAS"]
[]
["RECEITA"]
["ATIVIDADE",null,null,null,null,null,"EMPRESA / GRUPO",null,null,null,null,null,null,"PARTICIPAÇÃO\n(%)",null,null,null,null,"UNIDADE DE\nPRODUÇÃO",null,null,null,null,"PRODUTIVIDADE",null,null,null,null,null,"RECEITA\n(R$/UN)",null,null,null,null,"VALOR TOTAL\n(R$)",null,null,null,null,null,"VALOR PART. \n(R$)"]
[null,null,null,null,null,null,null,null,null,null,null,null,null,null,null,null,null,null,null,null,null,null,null,null,null,null,null,null,null,null,null,null,null,null,{"$f":"IF(X716*AD716=0,\"\",X716*AD716)","v":""},null,null,null,null,null,{"$f":"IF(AI716=\"\",\"\",AI716*N716)","v":""},null,null,null,null,null,{"$f":"SUM(AV716:AV735)","v":1},1]
[null,null,null,null,null,null,null,null,null,null,null,null,null,null,null,null,null,null,{"$f":"IF(A717=\"LEITE\",\"LITROS\",IF(A717<>\"\",\"CABEÇAS\",\"\"))","v":""},null,null,null,null,null,null,null,null,null,null,null,null,null,null,null,{"$f":"IF(X717*AD717=0,\"\",X717*AD717)","v":""},null,null,null,null,null,{"$f":"IF(AI717=\"\",\"\",AI717*N717)","v":""}]
[null,null,null,null,null,null,null,null,null,null,null,null,null,null,null,null,null,null,{"$f":"IF(A718=\"LEITE\",\"LITROS\",IF(A718<>\"\",\"CABEÇAS\",\"\"))","v":""},null,null,null,null,null,null,null,null,null,null,null,null,null,null,null,{"$f":"IF(X718*AD718=0,\"\",X718*AD718)","v":""},null,null,null,null,null,{"$f":"IF(AI718=\"\",\"\",AI718*N718)","v":""}]
[null,null,null,null,null,null,null,null,null,null,null,null,null,null,null,null,null,null,"",null,null,null,null,null,null,null,null,null,null,null,null,null,null,null,"",null,null,null,null,null,""]
[null,null,null,null,null,null,null,null,null,null,null,null,null,null,null,null,null,null,"",null,null,null,null,null,null,null,null,null,null,null,null,null,null,null,"",null,null,null,null,null,""]
[null,null,null,null,null,null,null,null,null,null,null,null,null,null,null,null,null,null,"",null,null,null,null,null,null,null,null,null,null,null,null,null,null,null,"",null,null,null,null,null,""]
[null,null,null,null,null,null,null,null,null,null,null,null,null,null,null,null,null,null,"",null,null,null,null,null,null,null,null,null,null,null,null,null,null,null,"",null,null,null,null,null,""]
[null,null,null,null,null,null,null,null,null,null,null,null,null,null,null,null,null,null,"",null,null,null,null,null,null,null,null,null,null,null,null,null,null,null,"",null,null,null,null,null,""]
[null,null,null,null,null,null,null,null,null,null,null,null,null,null,null,null,null,null,"",null,null,null,null,null,null,null,null,null,null,null,null,null,null,null,{"$f":"IF(X724*AD724=0,\"\",X724*AD724)","v":""},null,null,null,null,null,""]
[null,null,null,null,null,null,null,null,null,null,null,null,null,null,null,null,null,null,"",null,null,null,null,null,null,null,null,null,null,null,null,null,null,null,{"$f":"IF(X725*AD725=0,\"\",X725*AD725)","v":""},null,null,null,null,null,""]
[null,null,null,null,null,null,null,null,null,null,null,null,null,null,null,null,null,null,"",null,null,null,null,null,null,null,null,null,null,null,null,null,null,null,"",null,null,null,null,null,""]
[null,null,null,null,null,null,null,null,null,null,null,null,null,null,null,null,null,null,"",null,null,null,null,null,null,null,null,null,null,null,null,null,null,null,"",null,null,null,null,null,""]
[null,null,null,null,null,null,null,null,null,null,null,null,null,null,null,null,null,null,"",null,null,null,null,null,null,null,null,null,null,null,null,null,null,null,"",null,null,null,null,null,""]
[null,null,null,null,null,null,null,null,null,null,null,null,null,null,null,null,null,null,"",null,null,null,null,null,null,null,null,null,null,null,null,null,null,null,"",null,null,null,null,null,""]
[null,null,null,null,null,null,null,null,null,null,null,null,null,null,null,null,null,null,"",null,null,null,null,null,null,null,null,null,null,null,null,null,null,null,"",null,null,null,null,null,""]
[null,null,null,null,null,null,null,null,null,null,null,null,null,null,null,null,null,null,"",null,null,null,null,null,null,null,null,null,null,null,null,null,null,null,"",null,null,null,null,null,""]
[null,null,null,null,null,null,null,null,null,null,null,null,null,null,null,null,null,null,"",null,null,null,null,null,null,null,null,null,null,null,null,null,null,null,"",null,null,null,null,null,""]
[null,null,null,null,null,null,null,null,null,null,null,null,null,null,null,null,null,null,"",null,null,null,null,null,null,null,null,null,null,null,null,null,null,null,"",null,null,null,null,null,""]
[null,null,null,null,null,null,null,null,null,null,null,null,null,null,null,null,null,null,"",null,null,null,null,null,null,null,null,null,null,null,null,null,null,null,"",null,null,null,null,null,""]
[null,null,null,null,null,null,null,null,null,null,null,null,null,null,null,null,null,null,"",null,null,null,null,null,null,null,null,null,null,null,null,null,null,null,"",null,null,null,null,null,""]
["DESPESA"]
["ATIVIDADE",null,null,null,null,null,"EMPRESA / GRUPO",null,null,null,null,null,null,"PARTICIPAÇÃO\n(%)",null,null,null,null,"UNIDADE DE\nPRODUÇÃO",null,null,null,null,"PRODUTIVIDADE",null,null,null,null,null,"DESPESA\n(R$/UN)",null,null,null,null,"VALOR TOTAL\n(R$)",null,null,null,null,null,"VALOR PART. \n(R$)"]
[{"$f":"IF(A716=\"\",\"\",A716)","v":""},null,null,null,null,null,{"$f":"IF(G716=\"\",\"\",G716)","v":""},null,null,null,null,null,null,{"$f":"IF(N716=\"\",\"\",N716)","v":""},null,null,null,null,{"$f":"IF(S716=\"\",\"\",S716)","v":""},null,null,null,null,{"$f":"IF(X716=\"\",\"\",X716)","v":""},null,null,null,null,null,null,null,null,null,null,{"$f":"IF(OR(AD738=\"\",X738=\"\"),\"\",AD738*X738)","v":""},null,null,null,null,null,{"$f":"IF(OR(AD738=\"\",X738=\"\",N738=\"\"),\"\",AD738*X738*N738)","v":""},null,null,null,null,null,{"$f":"SUM(AV738:AV757)","v":1},1]
["",null,null,null,null,null,"",null,null,null,null,null,null,"",null,null,null,null,"",null,null,null,null,"",null,null,null,null,null,null,null,null,null,null,{"$f":"IF(OR(AD739=\"\",X739=\"\"),\"\",AD739*X739)","v":""},null,null,null,null,null,{"$f":"IF(OR(AD739=\"\",X739=\"\",N739=\"\"),\"\",AD739*X739*N739)","v":""}]
["",null,null,null,null,null,"",null,null,null,null,null,null,"",null,null,null,null,"",null,null,null,null,"",null,null,null,null,null,null,null,null,null,null,"",null,null,null,null,null,""]
["",null,null,null,null,null,"",null,null,null,null,null,null,"",null,null,null,null,"",null,null,null,null,"",null,null,null,null,null,null,null,null,null,null,"",null,null,null,null,null,""]
["",null,null,null,null,null,"",null,null,null,null,null,null,"",null,null,null,null,"",null,null,null,null,"",null,null,null,null,null,null,null,null,null,null,"",null,null,null,null,null,""]
["",null,null,null,null,null,"",null,null,null,null,null,null,"",null,null,null,null,"",null,null,null,null,"",null,null,null,null,null,null,null,null,null,null,"",null,null,null,null,null,""]
["",null,null,null,null,null,"",null,null,null,null,null,null,"",null,null,null,null,"",null,null,null,null,"",null,null,null,null,null,null,null,null,null,null,"",null,null,null,null,null,""]
["",null,null,null,null,null,"",null,null,null,null,null,null,"",null,null,null,null,"",null,null,null,null,"",null,null,null,null,null,null,null,null,null,null,"",null,null,null,null,null,""]
["",null,null,null,null,null,"",null,null,null,null,null,null,"",null,null,null,null,"",null,null,null,null,"",null,null,null,null,null,null,null,null,null,null,"",null,null,null,null,null,""]
["",null,null,null,null,null,"",null,null,null,null,null,null,"",null,null,null,null,"",null,null,null,null,"",null,null,null,null,null,null,null,null,null,null,"",null,null,null,null,null,""]
["",null,null,null,null,null,"",null,null,null,null,null,null,"",null,null,null,null,"",null,null,null,null,"",null,null,null,null,null,null,null,null,null,null,"",null,null,null,null,null,""]
["",null,null,null,null,null,"",null,null,null,null,null,null,"",null,null,null,null,"",null,null,null,null,"",null,null,null,null,null,null,null,null,null,null,"",null,null,null,null,null,""]
["",null,null,null,null,null,"",null,null,null,null,null,null,"",null,null,null,null,"",null,null,null,null,"",null,null,null,null,null,null,null,null,null,null,"",null,null,null,null,null,""]
["",null,null,null,null,null,"",null,null,null,null,null,null,"",null,null,null,null,"",null,null,null,null,"",null,null,null,null,null,null,null,null,null,null,"",null,null,null,null,null,""]
["",null,null,null,null,null,"",null,null,null,null,null,null,"",null,null,null,null,"",null,null,null,null,"",null,null,null,null,null,null,null,null,null,null,"",null,null,null,null,null,""]
["",null,null,null,null,null,"",null,null,null,null,null,null,"",null,null,null,null,"",null,null,null,null,"",null,null,null,null,null,null,null,null,null,null,"",null,null,null,null,null,""]
["",null,null,null,null,null,"",null,null,null,null,null,null,"",null,null,null,null,"",null,null,null,null,"",null,null,null,null,null,null,null,null,null,null,"",null,null,null,null,null,""]
["",null,null,null,null,null,"",null,null,null,null,null,null,"",null,null,null,null,"",null,null,null,null,"",null,null,null,null,null,null,null,null,null,null,"",null,null,null,null,null,""]
["",null,null,null,null,null,"",null,null,null,null,null,null,"",null,null,null,null,"",null,null,null,null,"",null,null,null,null,null,null,null,null,null,null,"",null,null,null,null,null,""]
["",null,null,null,null,null,"",null,null,null,null,null,null,"",null,null,null,null,"",null,null,null,null,"",null,null,null,null,null,null,null,null,null,null,"",null,null,null,null,null,""]
[]
["MARGEM FINANCEIRA - PROJETADA"]
[]
["RECEITAS",null,null,null,null,null,null,null,null,null,null,null,null,null,null,null,null,{"$f":"IF(SUM(R762:W763)+SUM(R769:W772)=0,0,SUM(R762:W763)+SUM(R769:W772))","v":0},null,null,null,null,null,"DESPESAS",null,null,null,null,null,null,null,null,null,null,null,null,null,null,null,{"$f":"IF(SUM(AN762:AS766)+SUM(AN769:AS772)+AN767=0,0,SUM(AN762:AS766)+SUM(AN769:AS772)+AN767*12)","v":0}]
["RECEITA PREVISTA ATIVIDADES AGRÍCOLAS",null,null,null,null,null,null,null,null,null,null,null,null,null,null,null,null,{"$f":"SUM(AO669:AS688)","v":0},null,null,null,null,null,"CUSTO PREVISTO ATIVIDADES AGRÍCOLAS",null,null,null,null,null,null,null,null,null,null,null,null,null,null,null,{"$f":"SUM(AO691:AS710)","v":0}]
["RECEITA PREVISTA ATIVIDADES PECUÁRIAS",null,null,null,null,null,null,null,null,null,null,null,null,null,null,null,null,{"$f":"SUM(AO716:AS735)","v":0},null,null,null,null,null,"CUSTO PREVISTO ATIVIDADES PECUÁRIAS",null,null,null,null,null,null,null,null,null,null,null,null,null,null,null,{"$f":"SUM(AO738:AS757)","v":0}]
[null,null,null,null,null,null,null,null,null,null,null,null,null,null,null,null,null,null,null,null,null,null,null,"ARRENDAMENTOS"]
[null,null,null,null,null,null,null,null,null,null,null,null,null,null,null,null,null,null,null,null,null,null,null,"JUROS DE FINANCIAMENTOS"]
[null,null,null,null,null,null,null,null,null,null,null,null,null,null,null,null,null,null,null,null,null,null,null,"MANUTENÇÃO DE MAQUINÁRIO"]
[null,null,null,null,null,null,null,null,null,null,null,null,null,null,null,null,null,null,null,null,null,null,null,"MANUTENÇÃO FAMILIAR MENSAL"]
["OUTRAS RECEITAS",null,null,null,null,null,null,null,null,null,null,null,null,null,null,null,null,null,null,null,null,null,null,"OUTRAS DESPESAS"]
[]
[]
[]
[]
["MARGEM FINANCEIRA LÍQUIDA:",null,null,null,null,null,null,null,null,null,null,null,null,null,null,null,null,null,null,null,null,null,null,null,null,{"$f":"IF(AND(R761=\"\",AN761=\"\"),\"\",R761-AN761)","v":0}]
[]
["QUESTIONÁRIO RISCO SÓCIO AMBIENTAL"]
[]
["QUESTÃO 01"]
["Se a área de produção ou do proprietário/arrendador/parceiro faz parte do bioma Amazônia ou Pantanal, declara que cumpre com as exigências ambientais e legais, conforme disposto na Lei n° 12.651/2012, no que se refere às áreas de Preservação Permanente e Reserva Legal?  "]
[]
[]
["RESPOSTA:"]
[]
["QUESTÃO 02"]
[" Se a resposta anterior for “Não”, declara que há a compensação da Reserva Legal em outra propriedade?"]
[]
["RESPOSTA:"]
[]
["QUESTÃO 03"]
["A atividade está sujeita ao licenciamento ambiental conforme a Resolução CONAMA n° 237/1997 ou normativo estadual/Municipal, se houver? Se \"Sim\", declara possuir o licenciamento necessário vigente?  "]
[]
[]
["RESPOSTA:"]
[]
["QUESTÃO 04"]
["Na realização de suas atividades utiliza produtos químicos (ex.: agrotóxicos e fertilizantes) não registrados em órgão federal, conforme as diretrizes e exigências dos órgãos federais responsáveis pelos setores saúde, meio ambiente e agricultura (Lei n° 7.802/1989)?  "]
[]
[]
["RESPOSTA:"]
[]
["QUESTÃO 05"]
["É realizada a tríplice lavagem ou tecnologia equivalente, procedimentos para devolução, destinação, transporte, reciclagem, reutilização e inutilização de embalagens vazias de agrotóxicos (§ 4° Artigo 6° da Lei n° 7.802/1989)?  "]
[]
[]
["RESPOSTA:"]
[]
["QUESTÃO 06"]
["O uso da água na área de produção e/ou construção está em conformidade com as normas de utilização de recursos hídricos (Lei n° 9.433/1997)?  "]
[]
[]
["RESPOSTA:"]
[]
["QUESTÃO 07"]
["Na produção e/ou execução das atividades declara estar em conformidade com a legislação trabalhista vigente, em especial o não emprego de mão de obra em condições análogas a escravo ou infantil, bem como cumpre com as regras atinentes à jornada de trabalho e ao pagamento de todos os salários, despesas e encargos decorrentes da legislação?  "]
[]
[]
["RESPOSTA:"]
[]
["QUESTÃO 08"]
["Possui débitos trabalhistas inadimplidos perante a Justiça do Trabalho?  "]
[]
[]
["RESPOSTA:"]
[]
["QUESTÃO 09"]
["Nos casos em que o recurso possuir uma destinação definida na contratação, a propriedade beneficiada/garantidora é ou foi objeto de inquérito, multas, embargos ou auto de infração relacionado às questões socioambientais nos últimos 5 anos? "]
[]
[]
["RESPOSTA:"]
[]
["QUESTÃO 10"]
["Houve condenação com sentença judicial transitada em julgado relacionada às questões socioambientais nos últimos 5 anos? "]
[]
[]
["RESPOSTA:"]
[]
["QUESTÃO 11"]
["Quando há infrações ou embargos de ordem ambiental e/ou social, o infrator poderá firmar TAC – Termo de Ajustamento de Conduta para regularização. Nos últimos 5 anos, as atividades da empresa/produtor rural foram objeto de inquérito, multa, auto de infração ou TAC em decorrência de questões sociais ou ambientais?  "]
[]
[]
["RESPOSTA:"]
[]
["QUESTÃO 12"]
["A sua atividade está exposta a impactos relacionados ao clima? Exemplos de impactos relacionados ao clima: período de seca prolongado; escassez/falta de água; chuvas intensas, deslizamentos de terra etc."]
[]
[]
["RESPOSTA:"]
["Se positivo, informar os impactos relacionados ao clima que a sua atividade está exposta:"]
[]
[]
[]
[]
["QUESTÃO 13"]
["Declara adotar iniciativas de combate aos riscos climáticos? Exemplos de iniciativas de combate aos riscos climáticos: redução do consumo de água; reflorestamento; adoção de energia de fontes renováveis na produção; geração própria de energia solar; eólica ou de pequena central hidrelétrica; metas para redução das emissões de gases efeito estufa; diagnóstico de emissão de gases de efeito estufa etc.  "]
[]
[]
["RESPOSTA:"]
["Se positivo, informar as iniciativas adotadas de combate aos riscos climáticos."]
[]
[]
[]
[]
[]
[]
[]
[]
[]
["DATA DE REFERÊNCIA:",null,null,null,null,null,null,null,null,null,"/",null,null,null,null,null,"/"]
[]
[]
[]
[]
["________________________________________",null,null,null,null,null,null,null,null,null,null,null,null,null,null,null,null,null,null,null,null,null,null,null,null,"________________________________________"]
[{"$f":"IF(TP_PESSOA=\"FÍSICA\",UPPER(D10),UPPER(D21))","v":""},null,null,null,null,null,null,null,null,null,null,null,null,null,null,null,null,null,null,null,null,null,null,null,null,{"$f":"UPPER('INFORMAÇÕES GERAIS'!H61)","v":""}]
[{"$f":"IF(G8=\"JURÍDICA\",\"Responsável pela Empresa\",\"Associado\")","v":"Associado"},null,null,null,null,null,null,null,null,null,null,null,null,null,null,null,null,null,null,null,null,null,null,null,null,{"$f":"CONCATENATE(\"Responsável Técnico - \",ÓRGÃO,\" \",N_ÓRGÃO)","v":"Responsável Técnico - CREA / CFTA: "}]

{"sheet":"EMPRESAS ELABORADORAS","index":1,"n_rows":11,"n_cols":6,"rows_kept":11,"cut":false,"hidden":true,"merged":[]}
["NOME","CNPJ","ENDEREÇO","CIDADE","TELEFONE","EMAIL"]
["AGROMINAS - APA ASSESSORIA E PLANEJAMENTO AGROPECUÁRIO LTDA",7357636000134,"RUA DO BÁLSAMO, Nº 500, BAIRRO CAMPESTRE","SÃO GOTARDO","(34)  3671-3425","AGROMINASSG@YAHOO.COM.BR"]
["AGROSOLUÇÕES - AFA ASSESSORIA PROJETOS E PLANEJAMENTOS LTDA",33478456000110,"AV. RUI BARBOSA, 174A, CENTRO","SÃO GOTARDO","(34) 3671-3334","AGROSOLUCOES@AGROSOLUCOESLTDA.COM.BR"]
["COOPADAP - COOPERATIVA AGROPECUÁRIA DO ALTO PARANAÍBA",86675642000106,"ROD MG 235 KM 89, 443 - GUARDA DOS FERREIROS","SÃO GOTARDO","(34) 3616-1200","DEBORAPRATES@COOPADAP.COM.BR"]
["ÉLCIO EDUARDO URBANO JÚNIOR",7244640692,"RUA CORONEL FONTE BOA - Nº 725 - CENTRO","SÃO GOTARDO","(34) 99823-4210","URBANOELCIO@YAHOO.COM.BR"]
["EMATER-MG",19198118000102,"RUA BENTO FERREIRA DOS SANTOS, 160 S02, CENTRO","SÃO GOTARDO","(34) 3671-1355","SAO.GOTARDO@EMATER.MG.GOV.BR"]
["FORTPLAN - VICTOR SATORU ALVES MUKAEDA 10149154658",41465317000180,"AV. TABELIÃO JOÃO LOPES, Nº 1064, CAMPESTRE","SÃO GOTARDO","(34) 99944-7158","FORTPLAN@OUTLOOK.COM"]
["NIVALDO LUCAS MARTINS",10839110669,"RUA CURITIBA, N° 95, BAIRRO SANTA TEREZINHA","SÃO GOTARDO","(34) 99931-0052","THIAGOFERNANDES@SHIMADAAGRO.COM.BR"]
["NOVA CONSULTORIA - JUSCELINO ALEXANDRINO MACHADO EIRELI",14409336000117,"AV. PRESIDENTE VARGAS, 245, CENTRO","SÃO GOTARDO","(34) 3671-2396","NOVACONSULTORIAEPROJETOS@HOTMAIL.COM"]
["PAULO MITURU YAMAGAMI",97037680834,"AV. RIO TOCANTINS, N° 70, BAIRRO SOL NASCENTE","SÃO GOTARDO","(34) 99983-0655","AGROLOGICA@YMAIL.COM"]
["PROGEO - ISAIAS DE SOUZA SANTOS",29368223000198,"RUA TRISTAO FURTADO, Nº 114, CENTRO","RIO PARANAÍBA","(34) 99961-9993","PROGEORP@GMAIL.COM"]

{"sheet":"LISTA","index":2,"n_rows":10,"n_cols":17,"rows_kept":10,"cut":false,"hidden":true,"merged":[]}
["LEITE",null,"ESTADO CIVIL",null,"TIPO EMPRESA",null,null,null,"NÃO ALFABETIZADO",null,null,null,null,"SÓCIO",null,null,"IR"]
["CORTE (CRIA)",null,"SOLTEIRO(A)",null,"MICROEMPREENDEDOR INDIVIDUAL (MEI)",null,null,null,"ATÉ 4ª SÉRIE INCOMPLETA DO ENSINO FUNDAMENTAL",null,null,null,null,"SÓCIO ADMINISTRADOR",null,null,"Certidão"]
["CORTE (RECRIA)",null,"CASADO(A)",null,"MICROEMPRESA (ME)",null,null,null,"4ª SÉRIE COMPLETA DO ENSINO FUNDAMENTAL",null,null,null,null,null,null,null,"Contrato de Compra e Venda"]
["CORTE (ENGOR.)",null,"VIÚVO(A)",null,"EMPRESA DE PEQUENO PORTE (EPP)",null,null,null,"DA 5ª À 8ª SÉRIE DO ENSINO FUNDAMENTAL",null,null,null,null,null,null,null,"Outros"]
[null,null,"DIVORCIADO(A)",null,"EMPRESA DE MÉDIO PORTE",null,null,null,"ENSINO FUNDAMENTAL COMPLETO (ANTIGO 1º GRAU)"]
[null,null,"SEPARADO(A)",null,"GRANDE EMPRESA",null,null,null,"ENSINO MÉDIO INCOMPLETO (ANTIGO 2º GRAU)"]
[null,null,"DESQUITADO(A)",null,null,null,null,null,"ENSINO MÉDIO COMPLETO (ANTIGO 2º GRAU)"]
[null,null,"UNIÃO ESTÁVEL",null,null,null,null,null,"EDUCAÇÃO SUPERIOR INCOMPLETA"]
[null,null,null,null,null,null,null,null,"EDUCAÇÃO SUPERIOR COMPLETA"]
[null,null,null,null,null,null,null,null,"PÓS-GRADUAÇÃO / MESTRADO / DOUTORADO"]

{"sheet":"LISTA_PATRIMÔNIO","index":3,"n_rows":21,"n_cols":11,"rows_kept":21,"cut":false,"hidden":true,"merged":[]}
["LOCALIZAÇÃO","TIPO USO","TIPO BEM","TIPO BEM",null,null,null,null,"TIPO_SEMOVENTES",null,"REF"]
["URBANO","RESIDENCIAL","CASA","VEÍCULO",null,null,null,null,"SUÍNOS",null,1]
["RURAL","COMERCIAL","APARTAMENTO","MÁQUINA",null,null,null,null,"BUBALINOS",null,2]
[" ","INDUSTRIAL","PRÉDIO","EQUIPAMENTO",null,null,null,null,"EQUINOS",null,3]
[null,"RURAL","TERRENO",null,null,null,null,null,"OVINOS",null,4]
[null,null,"PRÉDIO",null,null,null,null,null,"APICULTURA",null,5]
[null,null,"TERRENO",null,null,null,null,null,"ASININOS",null,6]
[null,null,"LOJA",null,null,null,null,null,"AVICULTURA",null,7]
[null,null,"SALA",null,null,null,null,null,"CANINOS",null,8]
[null,null,"GALPÃO",null,null,null,null,null,"CAPRINOS",null,9]
[null,null,"PRÉDIO",null,null,null,null,null,"PISCICULTURA",null,10]
[null,null,"TERRENO",null,null,null,null,null,"RANICULTURA",null,11]
[null,null,"FAZENDA",null,null,null,null,null,"SERICICULTURA",null,12]
[null,null,"SÍTIO",null,null,null,null,null,null,null,13]
[null,null,"RANCHO",null,null,null,null,null,null,null,14]
[null,null,"CHÁCARA",null,null,null,null,null,null,null,15]
[null,null,"ESTÂNCIA",null,null,null,null,null,null,null,16]
[null,null,"OUTRO",null,null,null,null,null,null,null,17]
[null,null,null,null,null,null,null,null,null,null,18]
[null,null,null,null,null,null,null,null,null,null,19]
[null,null,null,null,null,null,null,null,null,null,20]

{"sheet":"LISTAS","index":4,"n_rows":32,"n_cols":29,"rows_kept":32,"cut":false,"hidden":true,"merged":[]}
["CULTURAS","UNIDADES","DIA","MÊS","ANO","ASSISTENCIA TÉCNICA","GARANTIA","ATIVIDADE FINANCIADA","ATIVIDADE","PRODUTO","MEDIDA","VALOR","FINANCIADO","PRAZO MÁXIMO","1 MÊS",1,null,null,"NÍVEL TECNOLÓGICO","SISTEMA PRODUTIVO","ANGUS","BEZERRA","BEZERRA","0 a 6",{"$f":"YEAR(TODAY())-1","v":2021},null,"PRODUTOR",null,"PERIODICIDADE"]
[null,"UN",1,"JANEIRO",{"$f":"YEAR(TODAY())","v":2022},"SOMENTE ELABORAÇÃO DO PROJETO","PENHOR DOS ANIMAIS","BOVINOCULTURA DE LEITE","CRIA","CABEÇAS DE BEZERRO","CAB/MATRIZ","(POR CABEÇA)","MATRIZ BOVINA",12,"2 MESES",2,null,null,"EXTENSIVO","PASTAGEM","BONSMARA","BEZERRO","BEZERRA","7 a 12",{"$f":"Y1-1","v":2020},null,"PEQUENO PRODUTOR",null,"MENSAL"]
[null,"KG",2,"FEVEREIRO",{"$f":"E2+1","v":2023},"PROJETO + ASSISTÊNCIA","PENHOR DOS ANIMAIS + AVAIS","BOVINOCULTURA DE CORTE","RECRIA","CABEÇAS DE BOI MAGRO","KG PV/DIA/BEZ","(POR KG)","BEZERRO P/ RECRIA",12,"3 MESES",3,null,null,"SEMI-INTENSIVO","PASTAGEM IRRIGADA","CARACU","NOVILHA","BEZERRO","0 a 6",2019,null,"MÉDIO PRODUTOR",null,"SEMESTRAL"]
[null,"TON",3,"MARÇO",{"$f":"E3+1","v":2024},null,"PENHOR DOS ANIMAIS + GARANTIA REAL",null,"ENGORDA","CABEÇAS DE BOI GORDO","KG PV (GP)/DIA","(POR KG)","BOI MAGRO P/ ENGORDA",12,"4 MESES",4,null,null,"INTENSIVO","PASTAGEM + SUPLEMENTAÇÃO","BELGIAN BLUE","NOVILHO","BEZERRO","7 a 12",2018,null,"GRANDE PRODUTOR",null,"ANUAL"]
[null,"GR",4,"ABRIL",2025,null,"SOMENTE AVAIS",null,"RECRIA / ENGORDA","CABEÇAS DE BOI GORDO","KG PV (GP)/DIA","(POR KG)","BEZERRO P/ REC. E ENG.",24,"5 MESES",5,null,null,null,"PASTAGEM IRRIGADA + SUPLEMENT.","BRAFORD","VACA","BOI","25 a 30",2017]
[null,"m",5,"MAIO",2026,null,"SOMENTE GARANTIA REAL",null,"ENGORDA EM CONFINAMENTO","CABEÇAS DE BOI GORDO","KGPV (GP)/DIA","(POR KG)","BOI MAGRO P/ ENGORDA",6,"6 MESES",6,null,null,null,"ESTABULAMENTO","DEVON","BOI","BOI","30 a 36",2016]
[null,"SACO",6,"JUNHO",2027,null,"AVAIS + GARANTIA REAL",null,"PRODUÇÃO DE LEITE","LITROS DE LEITE","L/DIA/MATRIZ","(POR LITRO)","MATRIZ BOVINA",12,"7 MESES",7,null,null,null,null,"BRAHMAN",null,"BOI",{"$f":"TEXT(\"+ de 36\",1)","v":"+ de 36"},2015]
[null,"DOSE",7,"JULHO",2028,null,null,null,null,null,null,null,null,null,"8 MESES",8,null,null,null,null,"BRANGUS ",null,"NOVILHA","13 a 18",2014]
[null,"DIÁRIA",8,"AGOSTO",2029,null,null,null,null,null,null,null,null,null,"9 MESES",9,null,null,null,null,"CANCHIM",null,"NOVILHA","19 a 24"]
[null,"HORA",9,"SETEMBRO",2030,null,null,null,null,null,null,null,null,null,"10 MESES",10,null,null,null,null,"CHAROLÊS",null,"NOVILHA","25 a 30"]
[null,"L",10,"OUTUBRO",2031,null,null,null,null,null,null,null,null,null,"11 MESES",11,null,null,null,null,"CHIANINA",null,"NOVILHO","19 a 24"]
[null,"ml",11,"NOVEMBRO",2032,null,null,null,null,null,null,null,null,null,"12 MESES",12,null,null,null,null,"GIR",null,"NOVILHO","13 a 18"]
[null,null,12,"DEZEMBRO",2033,null,null,null,null,null,null,null,null,null,"13 MESES",13,null,null,null,null,"GUZERÁ",null,"NOVILHO","25 a 30"]
[null,null,13,null,null,null,null,null,"CRIA / RECRIA","BOI MAGRO (CABEÇA)","CAB/MATRIZ","(POR CABEÇA)","MATRIZ BOVINA",null,"14 MESES",14,null,null,null,null,"HEREFORD",null,"VACA","25 a 30"]
[null,null,14,null,null,null,null,null,"CRIA / RECRIA / ENGORDA","BOI GORDO (CABEÇA)","CAB/MATRIZ","(POR CABEÇA)","MATRIZ BOVINA",null,"15 MESES",15,null,null,null,null,"INDUBRASIL",null,"VACA","30 a 36"]
[null,null,15,null,null,null,null,null,null,null,null,null,null,null,"16 MESES",16,null,null,null,null,"LIMOUSIN",null,"VACA",{"$f":"TEXT(\"+ de 36\",1)","v":"+ de 36"}]
[null,null,16,null,null,null,null,null,null,null,null,null,null,null,"17 MESES",17,null,null,null,null,"MARCHIGIANA"]
[null,null,17,null,null,null,null,null,null,null,null,null,null,null,"18 MESES",18,null,null,null,null,"NELORE"]
[null,null,18,null,null,null,null,null,null,null,null,null,null,null,"19 MESES",19,null,null,null,null,"PIEMONTÊS"]
[null,null,19,null,null,null,null,null,null,null,null,null,null,null,"20 MESES",20,null,null,null,null,"RED ANGUS"]
[null,null,20,null,null,null,null,null,null,null,null,null,null,null,"21 MESES",21,null,null,null,null,"SANTA GERTRUDIS"]
[null,null,21,null,null,null,null,null,null,null,null,null,null,null,"22 MESES",22,null,null,null,null,"SENEPOL"]
[null,null,22,null,null,null,null,null,null,null,null,null,null,null,"23 MESES",23,null,null,null,null,"SIMENTAL"]
[null,null,23,null,null,null,null,null,null,null,null,null,null,null,"24 MESES",24,null,null,null,null,"TABAPUÃ"]
[null,null,24,null,null,null,null,null,null,null,null,null,null,null,null,null,null,null,null,null,"CRUZ. INDUSTRIAL"]
[null,null,25,null,null,null,null,null,null,null,null,null,null,null,null,null,null,null,null,null,"OUTROS"]
[null,null,26]
[null,null,27]
[null,null,28]
[null,null,29]
[null,null,30]
[null,null,31]